{"text_format":"3","workbook":"xlsx","n_sheets":3,"sheets":["Данни за пътната карта","Гъвкава пътна карта","Относно"],"not_rendered":{"defined_names":5},"read":"whole","date_system":"1900"}

{"sheet":"Данни за пътната карта","index":0,"n_rows":13,"n_cols":7,"rows_kept":13,"merged":[[12,1,12,4]]}
["Създайте гъвкава пътна карта, като въведете важни контролни точки или дейности в таблицата \"Данни за пътната карта\" в този работен лист.\nЗаглавието на този работен лист е в клетка B1. \nИнформацията как да използвате този работен лист, включително инструкции за екранните четци, има в работния лист \"Относно\".\nПродължете да се движите надолу в колона A за по-нататъшни указания.","Данни за гъвкава времева линия"]
["Заглавията на таблици са в клетки от B2 до E2. Използвайте филтрите в заглавията, за да сортирате таблицата и да намирате конкретни елементи.\nГъвкава пътна карта работи най-добре, когато таблицата е сортирана във възходящ ред по приоритет, последвано от контролна точка или дейност.\nПримерни данни е в таблицата \"Данни за пътната карта\" от клетки B3 до E12. \nСлед приключване на контролна точка или дейност, актуализирайте съответното поле резултат, за да покажете резултатите в работния лист \"Гъвкава пътна карта\". Въведете \"Без промяна\", за да осветите контролни точки без влияние.\nПродължете до клетка A13 за следващото указание.\n","Цел","Контролна точка или дейност","Приоритет","Резултат",null,"< – сортирайте таблицата по приоритет и контролна точка или дейност във възходящ ред"]
[null,"Текуща","Дейност 1\nСъздаване на прототип","1 – Висок",null,null,"< – добавете резултат за всяка завършена контролна точка. Въведете \"Без промяна\", за да осветите контролни точки без влияние."]
[null,"Предстои скоро","Дейност 2\nДемонстрация на прототип","1 – Висок"]
[null,"Текуща","Дейност 6","1 – Висок"]
[null,"Бъдеща","Дейност 7\nВъзлагане на разработката на първия етап на външен изпълнител","1 – Висок"]
[null,"Завършена","Дейност 9\nПърви етап одобрен","1 – Висок","Намаляване с 10%"]
[null,"Бъдеща","Дейност 10","2 - Среден"]
[null,"Предстои скоро","Дейност 8","2 - Среден"]
[null,"Завършена","Дейност 3","3 - Нисък","Без промяна"]
[null,"Бъдеща","Дейност 4","3 - Нисък"]
[null,"Текуща","Дейност 5","3 - Нисък"]
["Добавяйте нови елементи, като вмъквате нови редове в таблицата над този ред.\nТова е последното указание в този работен лист.","Добавяйте нови елементи, като вмъквате нови редове над този ред"]

{"sheet":"Гъвкава пътна карта","index":1,"n_rows":100,"n_cols":8,"rows_kept":100}
["В този работен лист се намира гъвкава пътна карта, показваща контролните точки и дейностите от работния лист \"Данни за пътната карта\". \nЗаглавието е в клетка B1. \nРезултатите, които съдържат фразата \"Без промяна\", са осветени в светло оранжево, rgb (255 230, 210).\nЗавършените контролни точки или дейности са осветената в светло зелено, rgb(237,251,219).","Гъвкава пътна карта"]
["Заглавията на диаграмите са в клетки B2, D2, F2 и H2. Те гласят: \"Завършена\", \"Текуща\", \"Предстои скоро\" и \"Бъдеща\". Можете да промените тези заглавия, за да промените стойностите за избор на цел в таблицата \"Данни за пътната карта\" в работния лист \"Данни за пътната карта\".\nКлетки B3 до H20 съдържат контролни точки и дейности за заглавията в този ред. \nКонтролните точки и дейностите се създават в работния лист \"Данни за пътната карта\".\nНЕ променяйте или изтривайте записи в този работен лист. Актуализирайте таблицата \"Данни за пътната карта\" в работния лист \"Данни за пътната карта\", за да актуализирате съдържанието в този работен лист.\nТова е последното указание в този работен лист.","Завършена",null,"Текуща",null,"Предстои скоро",null,"Бъдеща"]
[null,{"$f":"IFERROR(INDEX(Дейност,SMALL(IF(Цел=$B$2,ROW(Дейност)-MIN(ROW(Дейност))+1),ROWS($B$3:B3)))&\" \"&CHAR(10)&(INDEX(Резултат,SMALL(IF(Цел=$B$2,ROW(Резултат)-MIN(ROW(Резултат))+1),ROWS($B$3:B3))))&CHAR(10),\"\")","v":"Дейност 9\nПърви етап одобрен \nНамаляване с 10%\n"},null,{"$f":"IFERROR(INDEX(Дейност,SMALL(IF(Цел=$D$2,ROW(Дейност)-MIN(ROW(Дейност))+1),ROWS($B$3:B3)))&CHAR(10),\"\")","v":"Дейност 1\nСъздаване на прототип\n"},null,{"$f":"IFERROR(INDEX(Дейност,SMALL(IF(Цел=$F$2,ROW(Дейност)-MIN(ROW(Дейност))+1),ROWS($B$3:B3)))&CHAR(10),\"\")","v":"Дейност 2\nДемонстрация на прототип\n"},null,{"$f":"IFERROR(INDEX(Дейност,SMALL(IF(Цел=$H$2,ROW(Дейност)-MIN(ROW(Дейност))+1),ROWS($B$3:B3)))&CHAR(10),\"\")","v":"Дейност 7\nВъзлагане на разработката на първия етап на външен изпълнител\n"}]
[null,{"$f":"IFERROR(INDEX(Дейност,SMALL(IF(Цел=$B$2,ROW(Дейност)-MIN(ROW(Дейност))+1),ROWS($B$3:B4)))&\" \"&CHAR(10)&(INDEX(Резултат,SMALL(IF(Цел=$B$2,ROW(Резултат)-MIN(ROW(Резултат))+1),ROWS($B$3:B4))))&CHAR(10),\"\")","v":"Дейност 3 \nБез промяна\n"},null,{"$f":"IFERROR(INDEX(Дейност,SMALL(IF(Цел=$D$2,ROW(Дейност)-MIN(ROW(Дейност))+1),ROWS($B$3:B4)))&CHAR(10),\"\")","v":"Дейност 6\n"},null,{"$f":"IFERROR(INDEX(Дейност,SMALL(IF(Цел=$F$2,ROW(Дейност)-MIN(ROW(Дейност))+1),ROWS($B$3:B4)))&CHAR(10),\"\")","v":"Дейност 8\n"},null,{"$f":"IFERROR(INDEX(Дейност,SMALL(IF(Цел=$H$2,ROW(Дейност)-MIN(ROW(Дейност))+1),ROWS($B$3:B4)))&CHAR(10),\"\")","v":"Дейност 10\n"}]
[null,{"$f":"IFERROR(INDEX(Дейност,SMALL(IF(Цел=$B$2,ROW(Дейност)-MIN(ROW(Дейност))+1),ROWS($B$3:B5)))&\" \"&CHAR(10)&(INDEX(Резултат,SMALL(IF(Цел=$B$2,ROW(Резултат)-MIN(ROW(Резултат))+1),ROWS($B$3:B5))))&CHAR(10),\"\")","v":""},null,{"$f":"IFERROR(INDEX(Дейност,SMALL(IF(Цел=$D$2,ROW(Дейност)-MIN(ROW(Дейност))+1),ROWS($B$3:B5)))&CHAR(10),\"\")","v":"Дейност 5\n"},null,{"$f":"IFERROR(INDEX(Дейност,SMALL(IF(Цел=$F$2,ROW(Дейност)-MIN(ROW(Дейност))+1),ROWS($B$3:B5)))&CHAR(10),\"\")","v":""},null,{"$f":"IFERROR(INDEX(Дейност,SMALL(IF(Цел=$H$2,ROW(Дейност)-MIN(ROW(Дейност))+1),ROWS($B$3:B5)))&CHAR(10),\"\")","v":"Дейност 4\n"}]
[null,{"$f":"IFERROR(INDEX(Дейност,SMALL(IF(Цел=$B$2,ROW(Дейност)-MIN(ROW(Дейност))+1),ROWS($B$3:B6)))&\" \"&CHAR(10)&(INDEX(Резултат,SMALL(IF(Цел=$B$2,ROW(Резултат)-MIN(ROW(Резултат))+1),ROWS($B$3:B6))))&CHAR(10),\"\")","v":""},null,{"$f":"IFERROR(INDEX(Дейност,SMALL(IF(Цел=$D$2,ROW(Дейност)-MIN(ROW(Дейност))+1),ROWS($B$3:B6)))&CHAR(10),\"\")","v":""},null,{"$f":"IFERROR(INDEX(Дейност,SMALL(IF(Цел=$F$2,ROW(Дейност)-MIN(ROW(Дейност))+1),ROWS($B$3:B6)))&CHAR(10),\"\")","v":""},null,{"$f":"IFERROR(INDEX(Дейност,SMALL(IF(Цел=$H$2,ROW(Дейност)-MIN(ROW(Дейност))+1),ROWS($B$3:B6)))&CHAR(10),\"\")","v":""}]
[null,{"$f":"IFERROR(INDEX(Дейност,SMALL(IF(Цел=$B$2,ROW(Дейност)-MIN(ROW(Дейност))+1),ROWS($B$3:B7)))&\" \"&CHAR(10)&(INDEX(Резултат,SMALL(IF(Цел=$B$2,ROW(Резултат)-MIN(ROW(Резултат))+1),ROWS($B$3:B7))))&CHAR(10),\"\")","v":""},null,{"$f":"IFERROR(INDEX(Дейност,SMALL(IF(Цел=$D$2,ROW(Дейност)-MIN(ROW(Дейност))+1),ROWS($B$3:B7)))&CHAR(10),\"\")","v":""},null,{"$f":"IFERROR(INDEX(Дейност,SMALL(IF(Цел=$F$2,ROW(Дейност)-MIN(ROW(Дейност))+1),ROWS($B$3:B7)))&CHAR(10),\"\")","v":""},null,{"$f":"IFERROR(INDEX(Дейност,SMALL(IF(Цел=$H$2,ROW(Дейност)-MIN(ROW(Дейност))+1),ROWS($B$3:B7)))&CHAR(10),\"\")","v":""}]
[null,{"$f":"IFERROR(INDEX(Дейност,SMALL(IF(Цел=$B$2,ROW(Дейност)-MIN(ROW(Дейност))+1),ROWS($B$3:B8)))&\" \"&CHAR(10)&(INDEX(Резултат,SMALL(IF(Цел=$B$2,ROW(Резултат)-MIN(ROW(Резултат))+1),ROWS($B$3:B8))))&CHAR(10),\"\")","v":""},null,{"$f":"IFERROR(INDEX(Дейност,SMALL(IF(Цел=$D$2,ROW(Дейност)-MIN(ROW(Дейност))+1),ROWS($B$3:B8)))&CHAR(10),\"\")","v":""},null,{"$f":"IFERROR(INDEX(Дейност,SMALL(IF(Цел=$F$2,ROW(Дейност)-MIN(ROW(Дейност))+1),ROWS($B$3:B8)))&CHAR(10),\"\")","v":""},null,{"$f":"IFERROR(INDEX(Дейност,SMALL(IF(Цел=$H$2,ROW(Дейност)-MIN(ROW(Дейност))+1),ROWS($B$3:B8)))&CHAR(10),\"\")","v":""}]
[null,{"$f":"IFERROR(INDEX(Дейност,SMALL(IF(Цел=$B$2,ROW(Дейност)-MIN(ROW(Дейност))+1),ROWS($B$3:B9)))&\" \"&CHAR(10)&(INDEX(Резултат,SMALL(IF(Цел=$B$2,ROW(Резултат)-MIN(ROW(Резултат))+1),ROWS($B$3:B9))))&CHAR(10),\"\")","v":""},null,{"$f":"IFERROR(INDEX(Дейност,SMALL(IF(Цел=$D$2,ROW(Дейност)-MIN(ROW(Дейност))+1),ROWS($B$3:B9)))&CHAR(10),\"\")","v":""},null,{"$f":"IFERROR(INDEX(Дейност,SMALL(IF(Цел=$F$2,ROW(Дейност)-MIN(ROW(Дейност))+1),ROWS($B$3:B9)))&CHAR(10),\"\")","v":""},null,{"$f":"IFERROR(INDEX(Дейност,SMALL(IF(Цел=$H$2,ROW(Дейност)-MIN(ROW(Дейност))+1),ROWS($B$3:B9)))&CHAR(10),\"\")","v":""}]
[null,{"$f":"IFERROR(INDEX(Дейност,SMALL(IF(Цел=$B$2,ROW(Дейност)-MIN(ROW(Дейност))+1),ROWS($B$3:B10)))&\" \"&CHAR(10)&(INDEX(Резултат,SMALL(IF(Цел=$B$2,ROW(Резултат)-MIN(ROW(Резултат))+1),ROWS($B$3:B10))))&CHAR(10),\"\")","v":""},null,{"$f":"IFERROR(INDEX(Дейност,SMALL(IF(Цел=$D$2,ROW(Дейност)-MIN(ROW(Дейност))+1),ROWS($B$3:B10)))&CHAR(10),\"\")","v":""},null,{"$f":"IFERROR(INDEX(Дейност,SMALL(IF(Цел=$F$2,ROW(Дейност)-MIN(ROW(Дейност))+1),ROWS($B$3:B10)))&CHAR(10),\"\")","v":""},null,{"$f":"IFERROR(INDEX(Дейност,SMALL(IF(Цел=$H$2,ROW(Дейност)-MIN(ROW(Дейност))+1),ROWS($B$3:B10)))&CHAR(10),\"\")","v":""}]
[null,{"$f":"IFERROR(INDEX(Дейност,SMALL(IF(Цел=$B$2,ROW(Дейност)-MIN(ROW(Дейност))+1),ROWS($B$3:B11)))&\" \"&CHAR(10)&(INDEX(Резултат,SMALL(IF(Цел=$B$2,ROW(Резултат)-MIN(ROW(Резултат))+1),ROWS($B$3:B11))))&CHAR(10),\"\")","v":""},null,{"$f":"IFERROR(INDEX(Дейност,SMALL(IF(Цел=$D$2,ROW(Дейност)-MIN(ROW(Дейност))+1),ROWS($B$3:B11)))&CHAR(10),\"\")","v":""},null,{"$f":"IFERROR(INDEX(Дейност,SMALL(IF(Цел=$F$2,ROW(Дейност)-MIN(ROW(Дейност))+1),ROWS($B$3:B11)))&CHAR(10),\"\")","v":""},null,{"$f":"IFERROR(INDEX(Дейност,SMALL(IF(Цел=$H$2,ROW(Дейност)-MIN(ROW(Дейност))+1),ROWS($B$3:B11)))&CHAR(10),\"\")","v":""}]
[null,{"$f":"IFERROR(INDEX(Дейност,SMALL(IF(Цел=$B$2,ROW(Дейност)-MIN(ROW(Дейност))+1),ROWS($B$3:B12)))&\" \"&CHAR(10)&(INDEX(Резултат,SMALL(IF(Цел=$B$2,ROW(Резултат)-MIN(ROW(Резултат))+1),ROWS($B$3:B12))))&CHAR(10),\"\")","v":""},null,{"$f":"IFERROR(INDEX(Дейност,SMALL(IF(Цел=$D$2,ROW(Дейност)-MIN(ROW(Дейност))+1),ROWS($B$3:B12)))&CHAR(10),\"\")","v":""},null,{"$f":"IFERROR(INDEX(Дейност,SMALL(IF(Цел=$F$2,ROW(Дейност)-MIN(ROW(Дейност))+1),ROWS($B$3:B12)))&CHAR(10),\"\")","v":""},null,{"$f":"IFERROR(INDEX(Дейност,SMALL(IF(Цел=$H$2,ROW(Дейност)-MIN(ROW(Дейност))+1),ROWS($B$3:B12)))&CHAR(10),\"\")","v":""}]
[null,{"$f":"IFERROR(INDEX(Дейност,SMALL(IF(Цел=$B$2,ROW(Дейност)-MIN(ROW(Дейност))+1),ROWS($B$3:B13)))&\" \"&CHAR(10)&(INDEX(Резултат,SMALL(IF(Цел=$B$2,ROW(Резултат)-MIN(ROW(Резултат))+1),ROWS($B$3:B13))))&CHAR(10),\"\")","v":""},null,{"$f":"IFERROR(INDEX(Дейност,SMALL(IF(Цел=$D$2,ROW(Дейност)-MIN(ROW(Дейност))+1),ROWS($B$3:B13)))&CHAR(10),\"\")","v":""},null,{"$f":"IFERROR(INDEX(Дейност,SMALL(IF(Цел=$F$2,ROW(Дейност)-MIN(ROW(Дейност))+1),ROWS($B$3:B13)))&CHAR(10),\"\")","v":""},null,{"$f":"IFERROR(INDEX(Дейност,SMALL(IF(Цел=$H$2,ROW(Дейност)-MIN(ROW(Дейност))+1),ROWS($B$3:B13)))&CHAR(10),\"\")","v":""}]
[null,{"$f":"IFERROR(INDEX(Дейност,SMALL(IF(Цел=$B$2,ROW(Дейност)-MIN(ROW(Дейност))+1),ROWS($B$3:B14)))&\" \"&CHAR(10)&(INDEX(Резултат,SMALL(IF(Цел=$B$2,ROW(Резултат)-MIN(ROW(Резултат))+1),ROWS($B$3:B14))))&CHAR(10),\"\")","v":""},null,{"$f":"IFERROR(INDEX(Дейност,SMALL(IF(Цел=$D$2,ROW(Дейност)-MIN(ROW(Дейност))+1),ROWS($B$3:B14)))&CHAR(10),\"\")","v":""},null,{"$f":"IFERROR(INDEX(Дейност,SMALL(IF(Цел=$F$2,ROW(Дейност)-MIN(ROW(Дейност))+1),ROWS($B$3:B14)))&CHAR(10),\"\")","v":""},null,{"$f":"IFERROR(INDEX(Дейност,SMALL(IF(Цел=$H$2,ROW(Дейност)-MIN(ROW(Дейност))+1),ROWS($B$3:B14)))&CHAR(10),\"\")","v":""}]
[null,{"$f":"IFERROR(INDEX(Дейност,SMALL(IF(Цел=$B$2,ROW(Дейност)-MIN(ROW(Дейност))+1),ROWS($B$3:B15)))&\" \"&CHAR(10)&(INDEX(Резултат,SMALL(IF(Цел=$B$2,ROW(Резултат)-MIN(ROW(Резултат))+1),ROWS($B$3:B15))))&CHAR(10),\"\")","v":""},null,{"$f":"IFERROR(INDEX(Дейност,SMALL(IF(Цел=$D$2,ROW(Дейност)-MIN(ROW(Дейност))+1),ROWS($B$3:B15)))&CHAR(10),\"\")","v":""},null,{"$f":"IFERROR(INDEX(Дейност,SMALL(IF(Цел=$F$2,ROW(Дейност)-MIN(ROW(Дейност))+1),ROWS($B$3:B15)))&CHAR(10),\"\")","v":""},null,{"$f":"IFERROR(INDEX(Дейност,SMALL(IF(Цел=$H$2,ROW(Дейност)-MIN(ROW(Дейност))+1),ROWS($B$3:B15)))&CHAR(10),\"\")","v":""}]
[null,{"$f":"IFERROR(INDEX(Дейност,SMALL(IF(Цел=$B$2,ROW(Дейност)-MIN(ROW(Дейност))+1),ROWS($B$3:B16)))&\" \"&CHAR(10)&(INDEX(Резултат,SMALL(IF(Цел=$B$2,ROW(Резултат)-MIN(ROW(Резултат))+1),ROWS($B$3:B16))))&CHAR(10),\"\")","v":""},null,{"$f":"IFERROR(INDEX(Дейност,SMALL(IF(Цел=$D$2,ROW(Дейност)-MIN(ROW(Дейност))+1),ROWS($B$3:B16)))&CHAR(10),\"\")","v":""},null,{"$f":"IFERROR(INDEX(Дейност,SMALL(IF(Цел=$F$2,ROW(Дейност)-MIN(ROW(Дейност))+1),ROWS($B$3:B16)))&CHAR(10),\"\")","v":""},null,{"$f":"IFERROR(INDEX(Дейност,SMALL(IF(Цел=$H$2,ROW(Дейност)-MIN(ROW(Дейност))+1),ROWS($B$3:B16)))&CHAR(10),\"\")","v":""}]
[null,{"$f":"IFERROR(INDEX(Дейност,SMALL(IF(Цел=$B$2,ROW(Дейност)-MIN(ROW(Дейност))+1),ROWS($B$3:B17)))&\" \"&CHAR(10)&(INDEX(Резултат,SMALL(IF(Цел=$B$2,ROW(Резултат)-MIN(ROW(Резултат))+1),ROWS($B$3:B17))))&CHAR(10),\"\")","v":""},null,{"$f":"IFERROR(INDEX(Дейност,SMALL(IF(Цел=$D$2,ROW(Дейност)-MIN(ROW(Дейност))+1),ROWS($B$3:B17)))&CHAR(10),\"\")","v":""},null,{"$f":"IFERROR(INDEX(Дейност,SMALL(IF(Цел=$F$2,ROW(Дейност)-MIN(ROW(Дейност))+1),ROWS($B$3:B17)))&CHAR(10),\"\")","v":""},null,{"$f":"IFERROR(INDEX(Дейност,SMALL(IF(Цел=$H$2,ROW(Дейност)-MIN(ROW(Дейност))+1),ROWS($B$3:B17)))&CHAR(10),\"\")","v":""}]
[null,{"$f":"IFERROR(INDEX(Дейност,SMALL(IF(Цел=$B$2,ROW(Дейност)-MIN(ROW(Дейност))+1),ROWS($B$3:B18)))&\" \"&CHAR(10)&(INDEX(Резултат,SMALL(IF(Цел=$B$2,ROW(Резултат)-MIN(ROW(Резултат))+1),ROWS($B$3:B18))))&CHAR(10),\"\")","v":""},null,{"$f":"IFERROR(INDEX(Дейност,SMALL(IF(Цел=$D$2,ROW(Дейност)-MIN(ROW(Дейност))+1),ROWS($B$3:B18)))&CHAR(10),\"\")","v":""},null,{"$f":"IFERROR(INDEX(Дейност,SMALL(IF(Цел=$F$2,ROW(Дейност)-MIN(ROW(Дейност))+1),ROWS($B$3:B18)))&CHAR(10),\"\")","v":""},null,{"$f":"IFERROR(INDEX(Дейност,SMALL(IF(Цел=$H$2,ROW(Дейност)-MIN(ROW(Дейност))+1),ROWS($B$3:B18)))&CHAR(10),\"\")","v":""}]
[null,{"$f":"IFERROR(INDEX(Дейност,SMALL(IF(Цел=$B$2,ROW(Дейност)-MIN(ROW(Дейност))+1),ROWS($B$3:B19)))&\" \"&CHAR(10)&(INDEX(Резултат,SMALL(IF(Цел=$B$2,ROW(Резултат)-MIN(ROW(Резултат))+1),ROWS($B$3:B19))))&CHAR(10),\"\")","v":""},null,{"$f":"IFERROR(INDEX(Дейност,SMALL(IF(Цел=$D$2,ROW(Дейност)-MIN(ROW(Дейност))+1),ROWS($B$3:B19)))&CHAR(10),\"\")","v":""},null,{"$f":"IFERROR(INDEX(Дейност,SMALL(IF(Цел=$F$2,ROW(Дейност)-MIN(ROW(Дейност))+1),ROWS($B$3:B19)))&CHAR(10),\"\")","v":""},null,{"$f":"IFERROR(INDEX(Дейност,SMALL(IF(Цел=$H$2,ROW(Дейност)-MIN(ROW(Дейност))+1),ROWS($B$3:B19)))&CHAR(10),\"\")","v":""}]
[null,{"$f":"IFERROR(INDEX(Дейност,SMALL(IF(Цел=$B$2,ROW(Дейност)-MIN(ROW(Дейност))+1),ROWS($B$3:B20)))&\" \"&CHAR(10)&(INDEX(Резултат,SMALL(IF(Цел=$B$2,ROW(Резултат)-MIN(ROW(Резултат))+1),ROWS($B$3:B20))))&CHAR(10),\"\")","v":""},null,{"$f":"IFERROR(INDEX(Дейност,SMALL(IF(Цел=$D$2,ROW(Дейност)-MIN(ROW(Дейност))+1),ROWS($B$3:B20)))&CHAR(10),\"\")","v":""},null,{"$f":"IFERROR(INDEX(Дейност,SMALL(IF(Цел=$F$2,ROW(Дейност)-MIN(ROW(Дейност))+1),ROWS($B$3:B20)))&CHAR(10),\"\")","v":""},null,{"$f":"IFERROR(INDEX(Дейност,SMALL(IF(Цел=$H$2,ROW(Дейност)-MIN(ROW(Дейност))+1),ROWS($B$3:B20)))&CHAR(10),\"\")","v":""}]
[null,{"$f":"IFERROR(INDEX(Дейност,SMALL(IF(Цел=$B$2,ROW(Дейност)-MIN(ROW(Дейност))+1),ROWS($B$3:B21)))&\" \"&CHAR(10)&(INDEX(Резултат,SMALL(IF(Цел=$B$2,ROW(Резултат)-MIN(ROW(Резултат))+1),ROWS($B$3:B21))))&CHAR(10),\"\")","v":""},null,{"$f":"IFERROR(INDEX(Дейност,SMALL(IF(Цел=$D$2,ROW(Дейност)-MIN(ROW(Дейност))+1),ROWS($B$3:B21)))&CHAR(10),\"\")","v":""},null,{"$f":"IFERROR(INDEX(Дейност,SMALL(IF(Цел=$F$2,ROW(Дейност)-MIN(ROW(Дейност))+1),ROWS($B$3:B21)))&CHAR(10),\"\")","v":""},null,{"$f":"IFERROR(INDEX(Дейност,SMALL(IF(Цел=$H$2,ROW(Дейност)-MIN(ROW(Дейност))+1),ROWS($B$3:B21)))&CHAR(10),\"\")","v":""}]
[null,{"$f":"IFERROR(INDEX(Дейност,SMALL(IF(Цел=$B$2,ROW(Дейност)-MIN(ROW(Дейност))+1),ROWS($B$3:B22)))&\" \"&CHAR(10)&(INDEX(Резултат,SMALL(IF(Цел=$B$2,ROW(Резултат)-MIN(ROW(Резултат))+1),ROWS($B$3:B22))))&CHAR(10),\"\")","v":""},null,{"$f":"IFERROR(INDEX(Дейност,SMALL(IF(Цел=$D$2,ROW(Дейност)-MIN(ROW(Дейност))+1),ROWS($B$3:B22)))&CHAR(10),\"\")","v":""},null,{"$f":"IFERROR(INDEX(Дейност,SMALL(IF(Цел=$F$2,ROW(Дейност)-MIN(ROW(Дейност))+1),ROWS($B$3:B22)))&CHAR(10),\"\")","v":""},null,{"$f":"IFERROR(INDEX(Дейност,SMALL(IF(Цел=$H$2,ROW(Дейност)-MIN(ROW(Дейност))+1),ROWS($B$3:B22)))&CHAR(10),\"\")","v":""}]
[null,{"$f":"IFERROR(INDEX(Дейност,SMALL(IF(Цел=$B$2,ROW(Дейност)-MIN(ROW(Дейност))+1),ROWS($B$3:B23)))&\" \"&CHAR(10)&(INDEX(Резултат,SMALL(IF(Цел=$B$2,ROW(Резултат)-MIN(ROW(Резултат))+1),ROWS($B$3:B23))))&CHAR(10),\"\")","v":""},null,{"$f":"IFERROR(INDEX(Дейност,SMALL(IF(Цел=$D$2,ROW(Дейност)-MIN(ROW(Дейност))+1),ROWS($B$3:B23)))&CHAR(10),\"\")","v":""},null,{"$f":"IFERROR(INDEX(Дейност,SMALL(IF(Цел=$F$2,ROW(Дейност)-MIN(ROW(Дейност))+1),ROWS($B$3:B23)))&CHAR(10),\"\")","v":""},null,{"$f":"IFERROR(INDEX(Дейност,SMALL(IF(Цел=$H$2,ROW(Дейност)-MIN(ROW(Дейност))+1),ROWS($B$3:B23)))&CHAR(10),\"\")","v":""}]
[null,{"$f":"IFERROR(INDEX(Дейност,SMALL(IF(Цел=$B$2,ROW(Дейност)-MIN(ROW(Дейност))+1),ROWS($B$3:B24)))&\" \"&CHAR(10)&(INDEX(Резултат,SMALL(IF(Цел=$B$2,ROW(Резултат)-MIN(ROW(Резултат))+1),ROWS($B$3:B24))))&CHAR(10),\"\")","v":""},null,{"$f":"IFERROR(INDEX(Дейност,SMALL(IF(Цел=$D$2,ROW(Дейност)-MIN(ROW(Дейност))+1),ROWS($B$3:B24)))&CHAR(10),\"\")","v":""},null,{"$f":"IFERROR(INDEX(Дейност,SMALL(IF(Цел=$F$2,ROW(Дейност)-MIN(ROW(Дейност))+1),ROWS($B$3:B24)))&CHAR(10),\"\")","v":""},null,{"$f":"IFERROR(INDEX(Дейност,SMALL(IF(Цел=$H$2,ROW(Дейност)-MIN(ROW(Дейност))+1),ROWS($B$3:B24)))&CHAR(10),\"\")","v":""}]
[null,{"$f":"IFERROR(INDEX(Дейност,SMALL(IF(Цел=$B$2,ROW(Дейност)-MIN(ROW(Дейност))+1),ROWS($B$3:B25)))&\" \"&CHAR(10)&(INDEX(Резултат,SMALL(IF(Цел=$B$2,ROW(Резултат)-MIN(ROW(Резултат))+1),ROWS($B$3:B25))))&CHAR(10),\"\")","v":""},null,{"$f":"IFERROR(INDEX(Дейност,SMALL(IF(Цел=$D$2,ROW(Дейност)-MIN(ROW(Дейност))+1),ROWS($B$3:B25)))&CHAR(10),\"\")","v":""},null,{"$f":"IFERROR(INDEX(Дейност,SMALL(IF(Цел=$F$2,ROW(Дейност)-MIN(ROW(Дейност))+1),ROWS($B$3:B25)))&CHAR(10),\"\")","v":""},null,{"$f":"IFERROR(INDEX(Дейност,SMALL(IF(Цел=$H$2,ROW(Дейност)-MIN(ROW(Дейност))+1),ROWS($B$3:B25)))&CHAR(10),\"\")","v":""}]
[null,{"$f":"IFERROR(INDEX(Дейност,SMALL(IF(Цел=$B$2,ROW(Дейност)-MIN(ROW(Дейност))+1),ROWS($B$3:B26)))&\" \"&CHAR(10)&(INDEX(Резултат,SMALL(IF(Цел=$B$2,ROW(Резултат)-MIN(ROW(Резултат))+1),ROWS($B$3:B26))))&CHAR(10),\"\")","v":""},null,{"$f":"IFERROR(INDEX(Дейност,SMALL(IF(Цел=$D$2,ROW(Дейност)-MIN(ROW(Дейност))+1),ROWS($B$3:B26)))&CHAR(10),\"\")","v":""},null,{"$f":"IFERROR(INDEX(Дейност,SMALL(IF(Цел=$F$2,ROW(Дейност)-MIN(ROW(Дейност))+1),ROWS($B$3:B26)))&CHAR(10),\"\")","v":""},null,{"$f":"IFERROR(INDEX(Дейност,SMALL(IF(Цел=$H$2,ROW(Дейност)-MIN(ROW(Дейност))+1),ROWS($B$3:B26)))&CHAR(10),\"\")","v":""}]
[null,{"$f":"IFERROR(INDEX(Дейност,SMALL(IF(Цел=$B$2,ROW(Дейност)-MIN(ROW(Дейност))+1),ROWS($B$3:B27)))&\" \"&CHAR(10)&(INDEX(Резултат,SMALL(IF(Цел=$B$2,ROW(Резултат)-MIN(ROW(Резултат))+1),ROWS($B$3:B27))))&CHAR(10),\"\")","v":""},null,{"$f":"IFERROR(INDEX(Дейност,SMALL(IF(Цел=$D$2,ROW(Дейност)-MIN(ROW(Дейност))+1),ROWS($B$3:B27)))&CHAR(10),\"\")","v":""},null,{"$f":"IFERROR(INDEX(Дейност,SMALL(IF(Цел=$F$2,ROW(Дейност)-MIN(ROW(Дейност))+1),ROWS($B$3:B27)))&CHAR(10),\"\")","v":""},null,{"$f":"IFERROR(INDEX(Дейност,SMALL(IF(Цел=$H$2,ROW(Дейност)-MIN(ROW(Дейност))+1),ROWS($B$3:B27)))&CHAR(10),\"\")","v":""}]
[null,{"$f":"IFERROR(INDEX(Дейност,SMALL(IF(Цел=$B$2,ROW(Дейност)-MIN(ROW(Дейност))+1),ROWS($B$3:B28)))&\" \"&CHAR(10)&(INDEX(Резултат,SMALL(IF(Цел=$B$2,ROW(Резултат)-MIN(ROW(Резултат))+1),ROWS($B$3:B28))))&CHAR(10),\"\")","v":""},null,{"$f":"IFERROR(INDEX(Дейност,SMALL(IF(Цел=$D$2,ROW(Дейност)-MIN(ROW(Дейност))+1),ROWS($B$3:B28)))&CHAR(10),\"\")","v":""},null,{"$f":"IFERROR(INDEX(Дейност,SMALL(IF(Цел=$F$2,ROW(Дейност)-MIN(ROW(Дейност))+1),ROWS($B$3:B28)))&CHAR(10),\"\")","v":""},null,{"$f":"IFERROR(INDEX(Дейност,SMALL(IF(Цел=$H$2,ROW(Дейност)-MIN(ROW(Дейност))+1),ROWS($B$3:B28)))&CHAR(10),\"\")","v":""}]
[null,{"$f":"IFERROR(INDEX(Дейност,SMALL(IF(Цел=$B$2,ROW(Дейност)-MIN(ROW(Дейност))+1),ROWS($B$3:B29)))&\" \"&CHAR(10)&(INDEX(Резултат,SMALL(IF(Цел=$B$2,ROW(Резултат)-MIN(ROW(Резултат))+1),ROWS($B$3:B29))))&CHAR(10),\"\")","v":""},null,{"$f":"IFERROR(INDEX(Дейност,SMALL(IF(Цел=$D$2,ROW(Дейност)-MIN(ROW(Дейност))+1),ROWS($B$3:B29)))&CHAR(10),\"\")","v":""},null,{"$f":"IFERROR(INDEX(Дейност,SMALL(IF(Цел=$F$2,ROW(Дейност)-MIN(ROW(Дейност))+1),ROWS($B$3:B29)))&CHAR(10),\"\")","v":""},null,{"$f":"IFERROR(INDEX(Дейност,SMALL(IF(Цел=$H$2,ROW(Дейност)-MIN(ROW(Дейност))+1),ROWS($B$3:B29)))&CHAR(10),\"\")","v":""}]
[null,{"$f":"IFERROR(INDEX(Дейност,SMALL(IF(Цел=$B$2,ROW(Дейност)-MIN(ROW(Дейност))+1),ROWS($B$3:B30)))&\" \"&CHAR(10)&(INDEX(Резултат,SMALL(IF(Цел=$B$2,ROW(Резултат)-MIN(ROW(Резултат))+1),ROWS($B$3:B30))))&CHAR(10),\"\")","v":""},null,{"$f":"IFERROR(INDEX(Дейност,SMALL(IF(Цел=$D$2,ROW(Дейност)-MIN(ROW(Дейност))+1),ROWS($B$3:B30)))&CHAR(10),\"\")","v":""},null,{"$f":"IFERROR(INDEX(Дейност,SMALL(IF(Цел=$F$2,ROW(Дейност)-MIN(ROW(Дейност))+1),ROWS($B$3:B30)))&CHAR(10),\"\")","v":""},null,{"$f":"IFERROR(INDEX(Дейност,SMALL(IF(Цел=$H$2,ROW(Дейност)-MIN(ROW(Дейност))+1),ROWS($B$3:B30)))&CHAR(10),\"\")","v":""}]
[null,{"$f":"IFERROR(INDEX(Дейност,SMALL(IF(Цел=$B$2,ROW(Дейност)-MIN(ROW(Дейност))+1),ROWS($B$3:B31)))&\" \"&CHAR(10)&(INDEX(Резултат,SMALL(IF(Цел=$B$2,ROW(Резултат)-MIN(ROW(Резултат))+1),ROWS($B$3:B31))))&CHAR(10),\"\")","v":""},null,{"$f":"IFERROR(INDEX(Дейност,SMALL(IF(Цел=$D$2,ROW(Дейност)-MIN(ROW(Дейност))+1),ROWS($B$3:B31)))&CHAR(10),\"\")","v":""},null,{"$f":"IFERROR(INDEX(Дейност,SMALL(IF(Цел=$F$2,ROW(Дейност)-MIN(ROW(Дейност))+1),ROWS($B$3:B31)))&CHAR(10),\"\")","v":""},null,{"$f":"IFERROR(INDEX(Дейност,SMALL(IF(Цел=$H$2,ROW(Дейност)-MIN(ROW(Дейност))+1),ROWS($B$3:B31)))&CHAR(10),\"\")","v":""}]
[null,{"$f":"IFERROR(INDEX(Дейност,SMALL(IF(Цел=$B$2,ROW(Дейност)-MIN(ROW(Дейност))+1),ROWS($B$3:B32)))&\" \"&CHAR(10)&(INDEX(Резултат,SMALL(IF(Цел=$B$2,ROW(Резултат)-MIN(ROW(Резултат))+1),ROWS($B$3:B32))))&CHAR(10),\"\")","v":""},null,{"$f":"IFERROR(INDEX(Дейност,SMALL(IF(Цел=$D$2,ROW(Дейност)-MIN(ROW(Дейност))+1),ROWS($B$3:B32)))&CHAR(10),\"\")","v":""},null,{"$f":"IFERROR(INDEX(Дейност,SMALL(IF(Цел=$F$2,ROW(Дейност)-MIN(ROW(Дейност))+1),ROWS($B$3:B32)))&CHAR(10),\"\")","v":""},null,{"$f":"IFERROR(INDEX(Дейност,SMALL(IF(Цел=$H$2,ROW(Дейност)-MIN(ROW(Дейност))+1),ROWS($B$3:B32)))&CHAR(10),\"\")","v":""}]
[null,{"$f":"IFERROR(INDEX(Дейност,SMALL(IF(Цел=$B$2,ROW(Дейност)-MIN(ROW(Дейност))+1),ROWS($B$3:B33)))&\" \"&CHAR(10)&(INDEX(Резултат,SMALL(IF(Цел=$B$2,ROW(Резултат)-MIN(ROW(Резултат))+1),ROWS($B$3:B33))))&CHAR(10),\"\")","v":""},null,{"$f":"IFERROR(INDEX(Дейност,SMALL(IF(Цел=$D$2,ROW(Дейност)-MIN(ROW(Дейност))+1),ROWS($B$3:B33)))&CHAR(10),\"\")","v":""},null,{"$f":"IFERROR(INDEX(Дейност,SMALL(IF(Цел=$F$2,ROW(Дейност)-MIN(ROW(Дейност))+1),ROWS($B$3:B33)))&CHAR(10),\"\")","v":""},null,{"$f":"IFERROR(INDEX(Дейност,SMALL(IF(Цел=$H$2,ROW(Дейност)-MIN(ROW(Дейност))+1),ROWS($B$3:B33)))&CHAR(10),\"\")","v":""}]
[null,{"$f":"IFERROR(INDEX(Дейност,SMALL(IF(Цел=$B$2,ROW(Дейност)-MIN(ROW(Дейност))+1),ROWS($B$3:B34)))&\" \"&CHAR(10)&(INDEX(Резултат,SMALL(IF(Цел=$B$2,ROW(Резултат)-MIN(ROW(Резултат))+1),ROWS($B$3:B34))))&CHAR(10),\"\")","v":""},null,{"$f":"IFERROR(INDEX(Дейност,SMALL(IF(Цел=$D$2,ROW(Дейност)-MIN(ROW(Дейност))+1),ROWS($B$3:B34)))&CHAR(10),\"\")","v":""},null,{"$f":"IFERROR(INDEX(Дейност,SMALL(IF(Цел=$F$2,ROW(Дейност)-MIN(ROW(Дейност))+1),ROWS($B$3:B34)))&CHAR(10),\"\")","v":""},null,{"$f":"IFERROR(INDEX(Дейност,SMALL(IF(Цел=$H$2,ROW(Дейност)-MIN(ROW(Дейност))+1),ROWS($B$3:B34)))&CHAR(10),\"\")","v":""}]
[null,{"$f":"IFERROR(INDEX(Дейност,SMALL(IF(Цел=$B$2,ROW(Дейност)-MIN(ROW(Дейност))+1),ROWS($B$3:B35)))&\" \"&CHAR(10)&(INDEX(Резултат,SMALL(IF(Цел=$B$2,ROW(Резултат)-MIN(ROW(Резултат))+1),ROWS($B$3:B35))))&CHAR(10),\"\")","v":""},null,{"$f":"IFERROR(INDEX(Дейност,SMALL(IF(Цел=$D$2,ROW(Дейност)-MIN(ROW(Дейност))+1),ROWS($B$3:B35)))&CHAR(10),\"\")","v":""},null,{"$f":"IFERROR(INDEX(Дейност,SMALL(IF(Цел=$F$2,ROW(Дейност)-MIN(ROW(Дейност))+1),ROWS($B$3:B35)))&CHAR(10),\"\")","v":""},null,{"$f":"IFERROR(INDEX(Дейност,SMALL(IF(Цел=$H$2,ROW(Дейност)-MIN(ROW(Дейност))+1),ROWS($B$3:B35)))&CHAR(10),\"\")","v":""}]
[null,{"$f":"IFERROR(INDEX(Дейност,SMALL(IF(Цел=$B$2,ROW(Дейност)-MIN(ROW(Дейност))+1),ROWS($B$3:B36)))&\" \"&CHAR(10)&(INDEX(Резултат,SMALL(IF(Цел=$B$2,ROW(Резултат)-MIN(ROW(Резултат))+1),ROWS($B$3:B36))))&CHAR(10),\"\")","v":""},null,{"$f":"IFERROR(INDEX(Дейност,SMALL(IF(Цел=$D$2,ROW(Дейност)-MIN(ROW(Дейност))+1),ROWS($B$3:B36)))&CHAR(10),\"\")","v":""},null,{"$f":"IFERROR(INDEX(Дейност,SMALL(IF(Цел=$F$2,ROW(Дейност)-MIN(ROW(Дейност))+1),ROWS($B$3:B36)))&CHAR(10),\"\")","v":""},null,{"$f":"IFERROR(INDEX(Дейност,SMALL(IF(Цел=$H$2,ROW(Дейност)-MIN(ROW(Дейност))+1),ROWS($B$3:B36)))&CHAR(10),\"\")","v":""}]
[null,{"$f":"IFERROR(INDEX(Дейност,SMALL(IF(Цел=$B$2,ROW(Дейност)-MIN(ROW(Дейност))+1),ROWS($B$3:B37)))&\" \"&CHAR(10)&(INDEX(Резултат,SMALL(IF(Цел=$B$2,ROW(Резултат)-MIN(ROW(Резултат))+1),ROWS($B$3:B37))))&CHAR(10),\"\")","v":""},null,{"$f":"IFERROR(INDEX(Дейност,SMALL(IF(Цел=$D$2,ROW(Дейност)-MIN(ROW(Дейност))+1),ROWS($B$3:B37)))&CHAR(10),\"\")","v":""},null,{"$f":"IFERROR(INDEX(Дейност,SMALL(IF(Цел=$F$2,ROW(Дейност)-MIN(ROW(Дейност))+1),ROWS($B$3:B37)))&CHAR(10),\"\")","v":""},null,{"$f":"IFERROR(INDEX(Дейност,SMALL(IF(Цел=$H$2,ROW(Дейност)-MIN(ROW(Дейност))+1),ROWS($B$3:B37)))&CHAR(10),\"\")","v":""}]
[null,{"$f":"IFERROR(INDEX(Дейност,SMALL(IF(Цел=$B$2,ROW(Дейност)-MIN(ROW(Дейност))+1),ROWS($B$3:B38)))&\" \"&CHAR(10)&(INDEX(Резултат,SMALL(IF(Цел=$B$2,ROW(Резултат)-MIN(ROW(Резултат))+1),ROWS($B$3:B38))))&CHAR(10),\"\")","v":""},null,{"$f":"IFERROR(INDEX(Дейност,SMALL(IF(Цел=$D$2,ROW(Дейност)-MIN(ROW(Дейност))+1),ROWS($B$3:B38)))&CHAR(10),\"\")","v":""},null,{"$f":"IFERROR(INDEX(Дейност,SMALL(IF(Цел=$F$2,ROW(Дейност)-MIN(ROW(Дейност))+1),ROWS($B$3:B38)))&CHAR(10),\"\")","v":""},null,{"$f":"IFERROR(INDEX(Дейност,SMALL(IF(Цел=$H$2,ROW(Дейност)-MIN(ROW(Дейност))+1),ROWS($B$3:B38)))&CHAR(10),\"\")","v":""}]
[null,{"$f":"IFERROR(INDEX(Дейност,SMALL(IF(Цел=$B$2,ROW(Дейност)-MIN(ROW(Дейност))+1),ROWS($B$3:B39)))&\" \"&CHAR(10)&(INDEX(Резултат,SMALL(IF(Цел=$B$2,ROW(Резултат)-MIN(ROW(Резултат))+1),ROWS($B$3:B39))))&CHAR(10),\"\")","v":""},null,{"$f":"IFERROR(INDEX(Дейност,SMALL(IF(Цел=$D$2,ROW(Дейност)-MIN(ROW(Дейност))+1),ROWS($B$3:B39)))&CHAR(10),\"\")","v":""},null,{"$f":"IFERROR(INDEX(Дейност,SMALL(IF(Цел=$F$2,ROW(Дейност)-MIN(ROW(Дейност))+1),ROWS($B$3:B39)))&CHAR(10),\"\")","v":""},null,{"$f":"IFERROR(INDEX(Дейност,SMALL(IF(Цел=$H$2,ROW(Дейност)-MIN(ROW(Дейност))+1),ROWS($B$3:B39)))&CHAR(10),\"\")","v":""}]
[null,{"$f":"IFERROR(INDEX(Дейност,SMALL(IF(Цел=$B$2,ROW(Дейност)-MIN(ROW(Дейност))+1),ROWS($B$3:B40)))&\" \"&CHAR(10)&(INDEX(Резултат,SMALL(IF(Цел=$B$2,ROW(Резултат)-MIN(ROW(Резултат))+1),ROWS($B$3:B40))))&CHAR(10),\"\")","v":""},null,{"$f":"IFERROR(INDEX(Дейност,SMALL(IF(Цел=$D$2,ROW(Дейност)-MIN(ROW(Дейност))+1),ROWS($B$3:B40)))&CHAR(10),\"\")","v":""},null,{"$f":"IFERROR(INDEX(Дейност,SMALL(IF(Цел=$F$2,ROW(Дейност)-MIN(ROW(Дейност))+1),ROWS($B$3:B40)))&CHAR(10),\"\")","v":""},null,{"$f":"IFERROR(INDEX(Дейност,SMALL(IF(Цел=$H$2,ROW(Дейност)-MIN(ROW(Дейност))+1),ROWS($B$3:B40)))&CHAR(10),\"\")","v":""}]
[null,{"$f":"IFERROR(INDEX(Дейност,SMALL(IF(Цел=$B$2,ROW(Дейност)-MIN(ROW(Дейност))+1),ROWS($B$3:B41)))&\" \"&CHAR(10)&(INDEX(Резултат,SMALL(IF(Цел=$B$2,ROW(Резултат)-MIN(ROW(Резултат))+1),ROWS($B$3:B41))))&CHAR(10),\"\")","v":""},null,{"$f":"IFERROR(INDEX(Дейност,SMALL(IF(Цел=$D$2,ROW(Дейност)-MIN(ROW(Дейност))+1),ROWS($B$3:B41)))&CHAR(10),\"\")","v":""},null,{"$f":"IFERROR(INDEX(Дейност,SMALL(IF(Цел=$F$2,ROW(Дейност)-MIN(ROW(Дейност))+1),ROWS($B$3:B41)))&CHAR(10),\"\")","v":""},null,{"$f":"IFERROR(INDEX(Дейност,SMALL(IF(Цел=$H$2,ROW(Дейност)-MIN(ROW(Дейност))+1),ROWS($B$3:B41)))&CHAR(10),\"\")","v":""}]
[null,{"$f":"IFERROR(INDEX(Дейност,SMALL(IF(Цел=$B$2,ROW(Дейност)-MIN(ROW(Дейност))+1),ROWS($B$3:B42)))&\" \"&CHAR(10)&(INDEX(Резултат,SMALL(IF(Цел=$B$2,ROW(Резултат)-MIN(ROW(Резултат))+1),ROWS($B$3:B42))))&CHAR(10),\"\")","v":""},null,{"$f":"IFERROR(INDEX(Дейност,SMALL(IF(Цел=$D$2,ROW(Дейност)-MIN(ROW(Дейност))+1),ROWS($B$3:B42)))&CHAR(10),\"\")","v":""},null,{"$f":"IFERROR(INDEX(Дейност,SMALL(IF(Цел=$F$2,ROW(Дейност)-MIN(ROW(Дейност))+1),ROWS($B$3:B42)))&CHAR(10),\"\")","v":""},null,{"$f":"IFERROR(INDEX(Дейност,SMALL(IF(Цел=$H$2,ROW(Дейност)-MIN(ROW(Дейност))+1),ROWS($B$3:B42)))&CHAR(10),\"\")","v":""}]
[null,{"$f":"IFERROR(INDEX(Дейност,SMALL(IF(Цел=$B$2,ROW(Дейност)-MIN(ROW(Дейност))+1),ROWS($B$3:B43)))&\" \"&CHAR(10)&(INDEX(Резултат,SMALL(IF(Цел=$B$2,ROW(Резултат)-MIN(ROW(Резултат))+1),ROWS($B$3:B43))))&CHAR(10),\"\")","v":""},null,{"$f":"IFERROR(INDEX(Дейност,SMALL(IF(Цел=$D$2,ROW(Дейност)-MIN(ROW(Дейност))+1),ROWS($B$3:B43)))&CHAR(10),\"\")","v":""},null,{"$f":"IFERROR(INDEX(Дейност,SMALL(IF(Цел=$F$2,ROW(Дейност)-MIN(ROW(Дейност))+1),ROWS($B$3:B43)))&CHAR(10),\"\")","v":""},null,{"$f":"IFERROR(INDEX(Дейност,SMALL(IF(Цел=$H$2,ROW(Дейност)-MIN(ROW(Дейност))+1),ROWS($B$3:B43)))&CHAR(10),\"\")","v":""}]
[null,{"$f":"IFERROR(INDEX(Дейност,SMALL(IF(Цел=$B$2,ROW(Дейност)-MIN(ROW(Дейност))+1),ROWS($B$3:B44)))&\" \"&CHAR(10)&(INDEX(Резултат,SMALL(IF(Цел=$B$2,ROW(Резултат)-MIN(ROW(Резултат))+1),ROWS($B$3:B44))))&CHAR(10),\"\")","v":""},null,{"$f":"IFERROR(INDEX(Дейност,SMALL(IF(Цел=$D$2,ROW(Дейност)-MIN(ROW(Дейност))+1),ROWS($B$3:B44)))&CHAR(10),\"\")","v":""},null,{"$f":"IFERROR(INDEX(Дейност,SMALL(IF(Цел=$F$2,ROW(Дейност)-MIN(ROW(Дейност))+1),ROWS($B$3:B44)))&CHAR(10),\"\")","v":""},null,{"$f":"IFERROR(INDEX(Дейност,SMALL(IF(Цел=$H$2,ROW(Дейност)-MIN(ROW(Дейност))+1),ROWS($B$3:B44)))&CHAR(10),\"\")","v":""}]
[null,{"$f":"IFERROR(INDEX(Дейност,SMALL(IF(Цел=$B$2,ROW(Дейност)-MIN(ROW(Дейност))+1),ROWS($B$3:B45)))&\" \"&CHAR(10)&(INDEX(Резултат,SMALL(IF(Цел=$B$2,ROW(Резултат)-MIN(ROW(Резултат))+1),ROWS($B$3:B45))))&CHAR(10),\"\")","v":""},null,{"$f":"IFERROR(INDEX(Дейност,SMALL(IF(Цел=$D$2,ROW(Дейност)-MIN(ROW(Дейност))+1),ROWS($B$3:B45)))&CHAR(10),\"\")","v":""},null,{"$f":"IFERROR(INDEX(Дейност,SMALL(IF(Цел=$F$2,ROW(Дейност)-MIN(ROW(Дейност))+1),ROWS($B$3:B45)))&CHAR(10),\"\")","v":""},null,{"$f":"IFERROR(INDEX(Дейност,SMALL(IF(Цел=$H$2,ROW(Дейност)-MIN(ROW(Дейност))+1),ROWS($B$3:B45)))&CHAR(10),\"\")","v":""}]
[null,{"$f":"IFERROR(INDEX(Дейност,SMALL(IF(Цел=$B$2,ROW(Дейност)-MIN(ROW(Дейност))+1),ROWS($B$3:B46)))&\" \"&CHAR(10)&(INDEX(Резултат,SMALL(IF(Цел=$B$2,ROW(Резултат)-MIN(ROW(Резултат))+1),ROWS($B$3:B46))))&CHAR(10),\"\")","v":""},null,{"$f":"IFERROR(INDEX(Дейност,SMALL(IF(Цел=$D$2,ROW(Дейност)-MIN(ROW(Дейност))+1),ROWS($B$3:B46)))&CHAR(10),\"\")","v":""},null,{"$f":"IFERROR(INDEX(Дейност,SMALL(IF(Цел=$F$2,ROW(Дейност)-MIN(ROW(Дейност))+1),ROWS($B$3:B46)))&CHAR(10),\"\")","v":""},null,{"$f":"IFERROR(INDEX(Дейност,SMALL(IF(Цел=$H$2,ROW(Дейност)-MIN(ROW(Дейност))+1),ROWS($B$3:B46)))&CHAR(10),\"\")","v":""}]
[null,{"$f":"IFERROR(INDEX(Дейност,SMALL(IF(Цел=$B$2,ROW(Дейност)-MIN(ROW(Дейност))+1),ROWS($B$3:B47)))&\" \"&CHAR(10)&(INDEX(Резултат,SMALL(IF(Цел=$B$2,ROW(Резултат)-MIN(ROW(Резултат))+1),ROWS($B$3:B47))))&CHAR(10),\"\")","v":""},null,{"$f":"IFERROR(INDEX(Дейност,SMALL(IF(Цел=$D$2,ROW(Дейност)-MIN(ROW(Дейност))+1),ROWS($B$3:B47)))&CHAR(10),\"\")","v":""},null,{"$f":"IFERROR(INDEX(Дейност,SMALL(IF(Цел=$F$2,ROW(Дейност)-MIN(ROW(Дейност))+1),ROWS($B$3:B47)))&CHAR(10),\"\")","v":""},null,{"$f":"IFERROR(INDEX(Дейност,SMALL(IF(Цел=$H$2,ROW(Дейност)-MIN(ROW(Дейност))+1),ROWS($B$3:B47)))&CHAR(10),\"\")","v":""}]
[null,{"$f":"IFERROR(INDEX(Дейност,SMALL(IF(Цел=$B$2,ROW(Дейност)-MIN(ROW(Дейност))+1),ROWS($B$3:B48)))&\" \"&CHAR(10)&(INDEX(Резултат,SMALL(IF(Цел=$B$2,ROW(Резултат)-MIN(ROW(Резултат))+1),ROWS($B$3:B48))))&CHAR(10),\"\")","v":""},null,{"$f":"IFERROR(INDEX(Дейност,SMALL(IF(Цел=$D$2,ROW(Дейност)-MIN(ROW(Дейност))+1),ROWS($B$3:B48)))&CHAR(10),\"\")","v":""},null,{"$f":"IFERROR(INDEX(Дейност,SMALL(IF(Цел=$F$2,ROW(Дейност)-MIN(ROW(Дейност))+1),ROWS($B$3:B48)))&CHAR(10),\"\")","v":""},null,{"$f":"IFERROR(INDEX(Дейност,SMALL(IF(Цел=$H$2,ROW(Дейност)-MIN(ROW(Дейност))+1),ROWS($B$3:B48)))&CHAR(10),\"\")","v":""}]
[null,{"$f":"IFERROR(INDEX(Дейност,SMALL(IF(Цел=$B$2,ROW(Дейност)-MIN(ROW(Дейност))+1),ROWS($B$3:B49)))&\" \"&CHAR(10)&(INDEX(Резултат,SMALL(IF(Цел=$B$2,ROW(Резултат)-MIN(ROW(Резултат))+1),ROWS($B$3:B49))))&CHAR(10),\"\")","v":""},null,{"$f":"IFERROR(INDEX(Дейност,SMALL(IF(Цел=$D$2,ROW(Дейност)-MIN(ROW(Дейност))+1),ROWS($B$3:B49)))&CHAR(10),\"\")","v":""},null,{"$f":"IFERROR(INDEX(Дейност,SMALL(IF(Цел=$F$2,ROW(Дейност)-MIN(ROW(Дейност))+1),ROWS($B$3:B49)))&CHAR(10),\"\")","v":""},null,{"$f":"IFERROR(INDEX(Дейност,SMALL(IF(Цел=$H$2,ROW(Дейност)-MIN(ROW(Дейност))+1),ROWS($B$3:B49)))&CHAR(10),\"\")","v":""}]
[null,{"$f":"IFERROR(INDEX(Дейност,SMALL(IF(Цел=$B$2,ROW(Дейност)-MIN(ROW(Дейност))+1),ROWS($B$3:B50)))&\" \"&CHAR(10)&(INDEX(Резултат,SMALL(IF(Цел=$B$2,ROW(Резултат)-MIN(ROW(Резултат))+1),ROWS($B$3:B50))))&CHAR(10),\"\")","v":""},null,{"$f":"IFERROR(INDEX(Дейност,SMALL(IF(Цел=$D$2,ROW(Дейност)-MIN(ROW(Дейност))+1),ROWS($B$3:B50)))&CHAR(10),\"\")","v":""},null,{"$f":"IFERROR(INDEX(Дейност,SMALL(IF(Цел=$F$2,ROW(Дейност)-MIN(ROW(Дейност))+1),ROWS($B$3:B50)))&CHAR(10),\"\")","v":""},null,{"$f":"IFERROR(INDEX(Дейност,SMALL(IF(Цел=$H$2,ROW(Дейност)-MIN(ROW(Дейност))+1),ROWS($B$3:B50)))&CHAR(10),\"\")","v":""}]
[null,{"$f":"IFERROR(INDEX(Дейност,SMALL(IF(Цел=$B$2,ROW(Дейност)-MIN(ROW(Дейност))+1),ROWS($B$3:B51)))&\" \"&CHAR(10)&(INDEX(Резултат,SMALL(IF(Цел=$B$2,ROW(Резултат)-MIN(ROW(Резултат))+1),ROWS($B$3:B51))))&CHAR(10),\"\")","v":""},null,{"$f":"IFERROR(INDEX(Дейност,SMALL(IF(Цел=$D$2,ROW(Дейност)-MIN(ROW(Дейност))+1),ROWS($B$3:B51)))&CHAR(10),\"\")","v":""},null,{"$f":"IFERROR(INDEX(Дейност,SMALL(IF(Цел=$F$2,ROW(Дейност)-MIN(ROW(Дейност))+1),ROWS($B$3:B51)))&CHAR(10),\"\")","v":""},null,{"$f":"IFERROR(INDEX(Дейност,SMALL(IF(Цел=$H$2,ROW(Дейност)-MIN(ROW(Дейност))+1),ROWS($B$3:B51)))&CHAR(10),\"\")","v":""}]
[null,{"$f":"IFERROR(INDEX(Дейност,SMALL(IF(Цел=$B$2,ROW(Дейност)-MIN(ROW(Дейност))+1),ROWS($B$3:B52)))&\" \"&CHAR(10)&(INDEX(Резултат,SMALL(IF(Цел=$B$2,ROW(Резултат)-MIN(ROW(Резултат))+1),ROWS($B$3:B52))))&CHAR(10),\"\")","v":""},null,{"$f":"IFERROR(INDEX(Дейност,SMALL(IF(Цел=$D$2,ROW(Дейност)-MIN(ROW(Дейност))+1),ROWS($B$3:B52)))&CHAR(10),\"\")","v":""},null,{"$f":"IFERROR(INDEX(Дейност,SMALL(IF(Цел=$F$2,ROW(Дейност)-MIN(ROW(Дейност))+1),ROWS($B$3:B52)))&CHAR(10),\"\")","v":""},null,{"$f":"IFERROR(INDEX(Дейност,SMALL(IF(Цел=$H$2,ROW(Дейност)-MIN(ROW(Дейност))+1),ROWS($B$3:B52)))&CHAR(10),\"\")","v":""}]
[null,{"$f":"IFERROR(INDEX(Дейност,SMALL(IF(Цел=$B$2,ROW(Дейност)-MIN(ROW(Дейност))+1),ROWS($B$3:B53)))&\" \"&CHAR(10)&(INDEX(Резултат,SMALL(IF(Цел=$B$2,ROW(Резултат)-MIN(ROW(Резултат))+1),ROWS($B$3:B53))))&CHAR(10),\"\")","v":""},null,{"$f":"IFERROR(INDEX(Дейност,SMALL(IF(Цел=$D$2,ROW(Дейност)-MIN(ROW(Дейност))+1),ROWS($B$3:B53)))&CHAR(10),\"\")","v":""},null,{"$f":"IFERROR(INDEX(Дейност,SMALL(IF(Цел=$F$2,ROW(Дейност)-MIN(ROW(Дейност))+1),ROWS($B$3:B53)))&CHAR(10),\"\")","v":""},null,{"$f":"IFERROR(INDEX(Дейност,SMALL(IF(Цел=$H$2,ROW(Дейност)-MIN(ROW(Дейност))+1),ROWS($B$3:B53)))&CHAR(10),\"\")","v":""}]
[null,{"$f":"IFERROR(INDEX(Дейност,SMALL(IF(Цел=$B$2,ROW(Дейност)-MIN(ROW(Дейност))+1),ROWS($B$3:B54)))&\" \"&CHAR(10)&(INDEX(Резултат,SMALL(IF(Цел=$B$2,ROW(Резултат)-MIN(ROW(Резултат))+1),ROWS($B$3:B54))))&CHAR(10),\"\")","v":""},null,{"$f":"IFERROR(INDEX(Дейност,SMALL(IF(Цел=$D$2,ROW(Дейност)-MIN(ROW(Дейност))+1),ROWS($B$3:B54)))&CHAR(10),\"\")","v":""},null,{"$f":"IFERROR(INDEX(Дейност,SMALL(IF(Цел=$F$2,ROW(Дейност)-MIN(ROW(Дейност))+1),ROWS($B$3:B54)))&CHAR(10),\"\")","v":""},null,{"$f":"IFERROR(INDEX(Дейност,SMALL(IF(Цел=$H$2,ROW(Дейност)-MIN(ROW(Дейност))+1),ROWS($B$3:B54)))&CHAR(10),\"\")","v":""}]
[null,{"$f":"IFERROR(INDEX(Дейност,SMALL(IF(Цел=$B$2,ROW(Дейност)-MIN(ROW(Дейност))+1),ROWS($B$3:B55)))&\" \"&CHAR(10)&(INDEX(Резултат,SMALL(IF(Цел=$B$2,ROW(Резултат)-MIN(ROW(Резултат))+1),ROWS($B$3:B55))))&CHAR(10),\"\")","v":""},null,{"$f":"IFERROR(INDEX(Дейност,SMALL(IF(Цел=$D$2,ROW(Дейност)-MIN(ROW(Дейност))+1),ROWS($B$3:B55)))&CHAR(10),\"\")","v":""},null,{"$f":"IFERROR(INDEX(Дейност,SMALL(IF(Цел=$F$2,ROW(Дейност)-MIN(ROW(Дейност))+1),ROWS($B$3:B55)))&CHAR(10),\"\")","v":""},null,{"$f":"IFERROR(INDEX(Дейност,SMALL(IF(Цел=$H$2,ROW(Дейност)-MIN(ROW(Дейност))+1),ROWS($B$3:B55)))&CHAR(10),\"\")","v":""}]
[null,{"$f":"IFERROR(INDEX(Дейност,SMALL(IF(Цел=$B$2,ROW(Дейност)-MIN(ROW(Дейност))+1),ROWS($B$3:B56)))&\" \"&CHAR(10)&(INDEX(Резултат,SMALL(IF(Цел=$B$2,ROW(Резултат)-MIN(ROW(Резултат))+1),ROWS($B$3:B56))))&CHAR(10),\"\")","v":""},null,{"$f":"IFERROR(INDEX(Дейност,SMALL(IF(Цел=$D$2,ROW(Дейност)-MIN(ROW(Дейност))+1),ROWS($B$3:B56)))&CHAR(10),\"\")","v":""},null,{"$f":"IFERROR(INDEX(Дейност,SMALL(IF(Цел=$F$2,ROW(Дейност)-MIN(ROW(Дейност))+1),ROWS($B$3:B56)))&CHAR(10),\"\")","v":""},null,{"$f":"IFERROR(INDEX(Дейност,SMALL(IF(Цел=$H$2,ROW(Дейност)-MIN(ROW(Дейност))+1),ROWS($B$3:B56)))&CHAR(10),\"\")","v":""}]
[null,{"$f":"IFERROR(INDEX(Дейност,SMALL(IF(Цел=$B$2,ROW(Дейност)-MIN(ROW(Дейност))+1),ROWS($B$3:B57)))&\" \"&CHAR(10)&(INDEX(Резултат,SMALL(IF(Цел=$B$2,ROW(Резултат)-MIN(ROW(Резултат))+1),ROWS($B$3:B57))))&CHAR(10),\"\")","v":""},null,{"$f":"IFERROR(INDEX(Дейност,SMALL(IF(Цел=$D$2,ROW(Дейност)-MIN(ROW(Дейност))+1),ROWS($B$3:B57)))&CHAR(10),\"\")","v":""},null,{"$f":"IFERROR(INDEX(Дейност,SMALL(IF(Цел=$F$2,ROW(Дейност)-MIN(ROW(Дейност))+1),ROWS($B$3:B57)))&CHAR(10),\"\")","v":""},null,{"$f":"IFERROR(INDEX(Дейност,SMALL(IF(Цел=$H$2,ROW(Дейност)-MIN(ROW(Дейност))+1),ROWS($B$3:B57)))&CHAR(10),\"\")","v":""}]
[null,{"$f":"IFERROR(INDEX(Дейност,SMALL(IF(Цел=$B$2,ROW(Дейност)-MIN(ROW(Дейност))+1),ROWS($B$3:B58)))&\" \"&CHAR(10)&(INDEX(Резултат,SMALL(IF(Цел=$B$2,ROW(Резултат)-MIN(ROW(Резултат))+1),ROWS($B$3:B58))))&CHAR(10),\"\")","v":""},null,{"$f":"IFERROR(INDEX(Дейност,SMALL(IF(Цел=$D$2,ROW(Дейност)-MIN(ROW(Дейност))+1),ROWS($B$3:B58)))&CHAR(10),\"\")","v":""},null,{"$f":"IFERROR(INDEX(Дейност,SMALL(IF(Цел=$F$2,ROW(Дейност)-MIN(ROW(Дейност))+1),ROWS($B$3:B58)))&CHAR(10),\"\")","v":""},null,{"$f":"IFERROR(INDEX(Дейност,SMALL(IF(Цел=$H$2,ROW(Дейност)-MIN(ROW(Дейност))+1),ROWS($B$3:B58)))&CHAR(10),\"\")","v":""}]
[null,{"$f":"IFERROR(INDEX(Дейност,SMALL(IF(Цел=$B$2,ROW(Дейност)-MIN(ROW(Дейност))+1),ROWS($B$3:B59)))&\" \"&CHAR(10)&(INDEX(Резултат,SMALL(IF(Цел=$B$2,ROW(Резултат)-MIN(ROW(Резултат))+1),ROWS($B$3:B59))))&CHAR(10),\"\")","v":""},null,{"$f":"IFERROR(INDEX(Дейност,SMALL(IF(Цел=$D$2,ROW(Дейност)-MIN(ROW(Дейност))+1),ROWS($B$3:B59)))&CHAR(10),\"\")","v":""},null,{"$f":"IFERROR(INDEX(Дейност,SMALL(IF(Цел=$F$2,ROW(Дейност)-MIN(ROW(Дейност))+1),ROWS($B$3:B59)))&CHAR(10),\"\")","v":""},null,{"$f":"IFERROR(INDEX(Дейност,SMALL(IF(Цел=$H$2,ROW(Дейност)-MIN(ROW(Дейност))+1),ROWS($B$3:B59)))&CHAR(10),\"\")","v":""}]
[null,{"$f":"IFERROR(INDEX(Дейност,SMALL(IF(Цел=$B$2,ROW(Дейност)-MIN(ROW(Дейност))+1),ROWS($B$3:B60)))&\" \"&CHAR(10)&(INDEX(Резултат,SMALL(IF(Цел=$B$2,ROW(Резултат)-MIN(ROW(Резултат))+1),ROWS($B$3:B60))))&CHAR(10),\"\")","v":""},null,{"$f":"IFERROR(INDEX(Дейност,SMALL(IF(Цел=$D$2,ROW(Дейност)-MIN(ROW(Дейност))+1),ROWS($B$3:B60)))&CHAR(10),\"\")","v":""},null,{"$f":"IFERROR(INDEX(Дейност,SMALL(IF(Цел=$F$2,ROW(Дейност)-MIN(ROW(Дейност))+1),ROWS($B$3:B60)))&CHAR(10),\"\")","v":""},null,{"$f":"IFERROR(INDEX(Дейност,SMALL(IF(Цел=$H$2,ROW(Дейност)-MIN(ROW(Дейност))+1),ROWS($B$3:B60)))&CHAR(10),\"\")","v":""}]
[null,{"$f":"IFERROR(INDEX(Дейност,SMALL(IF(Цел=$B$2,ROW(Дейност)-MIN(ROW(Дейност))+1),ROWS($B$3:B61)))&\" \"&CHAR(10)&(INDEX(Резултат,SMALL(IF(Цел=$B$2,ROW(Резултат)-MIN(ROW(Резултат))+1),ROWS($B$3:B61))))&CHAR(10),\"\")","v":""},null,{"$f":"IFERROR(INDEX(Дейност,SMALL(IF(Цел=$D$2,ROW(Дейност)-MIN(ROW(Дейност))+1),ROWS($B$3:B61)))&CHAR(10),\"\")","v":""},null,{"$f":"IFERROR(INDEX(Дейност,SMALL(IF(Цел=$F$2,ROW(Дейност)-MIN(ROW(Дейност))+1),ROWS($B$3:B61)))&CHAR(10),\"\")","v":""},null,{"$f":"IFERROR(INDEX(Дейност,SMALL(IF(Цел=$H$2,ROW(Дейност)-MIN(ROW(Дейност))+1),ROWS($B$3:B61)))&CHAR(10),\"\")","v":""}]
[null,{"$f":"IFERROR(INDEX(Дейност,SMALL(IF(Цел=$B$2,ROW(Дейност)-MIN(ROW(Дейност))+1),ROWS($B$3:B62)))&\" \"&CHAR(10)&(INDEX(Резултат,SMALL(IF(Цел=$B$2,ROW(Резултат)-MIN(ROW(Резултат))+1),ROWS($B$3:B62))))&CHAR(10),\"\")","v":""},null,{"$f":"IFERROR(INDEX(Дейност,SMALL(IF(Цел=$D$2,ROW(Дейност)-MIN(ROW(Дейност))+1),ROWS($B$3:B62)))&CHAR(10),\"\")","v":""},null,{"$f":"IFERROR(INDEX(Дейност,SMALL(IF(Цел=$F$2,ROW(Дейност)-MIN(ROW(Дейност))+1),ROWS($B$3:B62)))&CHAR(10),\"\")","v":""},null,{"$f":"IFERROR(INDEX(Дейност,SMALL(IF(Цел=$H$2,ROW(Дейност)-MIN(ROW(Дейност))+1),ROWS($B$3:B62)))&CHAR(10),\"\")","v":""}]
[null,{"$f":"IFERROR(INDEX(Дейност,SMALL(IF(Цел=$B$2,ROW(Дейност)-MIN(ROW(Дейност))+1),ROWS($B$3:B63)))&\" \"&CHAR(10)&(INDEX(Резултат,SMALL(IF(Цел=$B$2,ROW(Резултат)-MIN(ROW(Резултат))+1),ROWS($B$3:B63))))&CHAR(10),\"\")","v":""},null,{"$f":"IFERROR(INDEX(Дейност,SMALL(IF(Цел=$D$2,ROW(Дейност)-MIN(ROW(Дейност))+1),ROWS($B$3:B63)))&CHAR(10),\"\")","v":""},null,{"$f":"IFERROR(INDEX(Дейност,SMALL(IF(Цел=$F$2,ROW(Дейност)-MIN(ROW(Дейност))+1),ROWS($B$3:B63)))&CHAR(10),\"\")","v":""},null,{"$f":"IFERROR(INDEX(Дейност,SMALL(IF(Цел=$H$2,ROW(Дейност)-MIN(ROW(Дейност))+1),ROWS($B$3:B63)))&CHAR(10),\"\")","v":""}]
[null,{"$f":"IFERROR(INDEX(Дейност,SMALL(IF(Цел=$B$2,ROW(Дейност)-MIN(ROW(Дейност))+1),ROWS($B$3:B64)))&\" \"&CHAR(10)&(INDEX(Резултат,SMALL(IF(Цел=$B$2,ROW(Резултат)-MIN(ROW(Резултат))+1),ROWS($B$3:B64))))&CHAR(10),\"\")","v":""},null,{"$f":"IFERROR(INDEX(Дейност,SMALL(IF(Цел=$D$2,ROW(Дейност)-MIN(ROW(Дейност))+1),ROWS($B$3:B64)))&CHAR(10),\"\")","v":""},null,{"$f":"IFERROR(INDEX(Дейност,SMALL(IF(Цел=$F$2,ROW(Дейност)-MIN(ROW(Дейност))+1),ROWS($B$3:B64)))&CHAR(10),\"\")","v":""},null,{"$f":"IFERROR(INDEX(Дейност,SMALL(IF(Цел=$H$2,ROW(Дейност)-MIN(ROW(Дейност))+1),ROWS($B$3:B64)))&CHAR(10),\"\")","v":""}]
[null,{"$f":"IFERROR(INDEX(Дейност,SMALL(IF(Цел=$B$2,ROW(Дейност)-MIN(ROW(Дейност))+1),ROWS($B$3:B65)))&\" \"&CHAR(10)&(INDEX(Резултат,SMALL(IF(Цел=$B$2,ROW(Резултат)-MIN(ROW(Резултат))+1),ROWS($B$3:B65))))&CHAR(10),\"\")","v":""},null,{"$f":"IFERROR(INDEX(Дейност,SMALL(IF(Цел=$D$2,ROW(Дейност)-MIN(ROW(Дейност))+1),ROWS($B$3:B65)))&CHAR(10),\"\")","v":""},null,{"$f":"IFERROR(INDEX(Дейност,SMALL(IF(Цел=$F$2,ROW(Дейност)-MIN(ROW(Дейност))+1),ROWS($B$3:B65)))&CHAR(10),\"\")","v":""},null,{"$f":"IFERROR(INDEX(Дейност,SMALL(IF(Цел=$H$2,ROW(Дейност)-MIN(ROW(Дейност))+1),ROWS($B$3:B65)))&CHAR(10),\"\")","v":""}]
[null,{"$f":"IFERROR(INDEX(Дейност,SMALL(IF(Цел=$B$2,ROW(Дейност)-MIN(ROW(Дейност))+1),ROWS($B$3:B66)))&\" \"&CHAR(10)&(INDEX(Резултат,SMALL(IF(Цел=$B$2,ROW(Резултат)-MIN(ROW(Резултат))+1),ROWS($B$3:B66))))&CHAR(10),\"\")","v":""},null,{"$f":"IFERROR(INDEX(Дейност,SMALL(IF(Цел=$D$2,ROW(Дейност)-MIN(ROW(Дейност))+1),ROWS($B$3:B66)))&CHAR(10),\"\")","v":""},null,{"$f":"IFERROR(INDEX(Дейност,SMALL(IF(Цел=$F$2,ROW(Дейност)-MIN(ROW(Дейност))+1),ROWS($B$3:B66)))&CHAR(10),\"\")","v":""},null,{"$f":"IFERROR(INDEX(Дейност,SMALL(IF(Цел=$H$2,ROW(Дейност)-MIN(ROW(Дейност))+1),ROWS($B$3:B66)))&CHAR(10),\"\")","v":""}]
[null,{"$f":"IFERROR(INDEX(Дейност,SMALL(IF(Цел=$B$2,ROW(Дейност)-MIN(ROW(Дейност))+1),ROWS($B$3:B67)))&\" \"&CHAR(10)&(INDEX(Резултат,SMALL(IF(Цел=$B$2,ROW(Резултат)-MIN(ROW(Резултат))+1),ROWS($B$3:B67))))&CHAR(10),\"\")","v":""},null,{"$f":"IFERROR(INDEX(Дейност,SMALL(IF(Цел=$D$2,ROW(Дейност)-MIN(ROW(Дейност))+1),ROWS($B$3:B67)))&CHAR(10),\"\")","v":""},null,{"$f":"IFERROR(INDEX(Дейност,SMALL(IF(Цел=$F$2,ROW(Дейност)-MIN(ROW(Дейност))+1),ROWS($B$3:B67)))&CHAR(10),\"\")","v":""},null,{"$f":"IFERROR(INDEX(Дейност,SMALL(IF(Цел=$H$2,ROW(Дейност)-MIN(ROW(Дейност))+1),ROWS($B$3:B67)))&CHAR(10),\"\")","v":""}]
[null,{"$f":"IFERROR(INDEX(Дейност,SMALL(IF(Цел=$B$2,ROW(Дейност)-MIN(ROW(Дейност))+1),ROWS($B$3:B68)))&\" \"&CHAR(10)&(INDEX(Резултат,SMALL(IF(Цел=$B$2,ROW(Резултат)-MIN(ROW(Резултат))+1),ROWS($B$3:B68))))&CHAR(10),\"\")","v":""},null,{"$f":"IFERROR(INDEX(Дейност,SMALL(IF(Цел=$D$2,ROW(Дейност)-MIN(ROW(Дейност))+1),ROWS($B$3:B68)))&CHAR(10),\"\")","v":""},null,{"$f":"IFERROR(INDEX(Дейност,SMALL(IF(Цел=$F$2,ROW(Дейност)-MIN(ROW(Дейност))+1),ROWS($B$3:B68)))&CHAR(10),\"\")","v":""},null,{"$f":"IFERROR(INDEX(Дейност,SMALL(IF(Цел=$H$2,ROW(Дейност)-MIN(ROW(Дейност))+1),ROWS($B$3:B68)))&CHAR(10),\"\")","v":""}]
[null,{"$f":"IFERROR(INDEX(Дейност,SMALL(IF(Цел=$B$2,ROW(Дейност)-MIN(ROW(Дейност))+1),ROWS($B$3:B69)))&\" \"&CHAR(10)&(INDEX(Резултат,SMALL(IF(Цел=$B$2,ROW(Резултат)-MIN(ROW(Резултат))+1),ROWS($B$3:B69))))&CHAR(10),\"\")","v":""},null,{"$f":"IFERROR(INDEX(Дейност,SMALL(IF(Цел=$D$2,ROW(Дейност)-MIN(ROW(Дейност))+1),ROWS($B$3:B69)))&CHAR(10),\"\")","v":""},null,{"$f":"IFERROR(INDEX(Дейност,SMALL(IF(Цел=$F$2,ROW(Дейност)-MIN(ROW(Дейност))+1),ROWS($B$3:B69)))&CHAR(10),\"\")","v":""},null,{"$f":"IFERROR(INDEX(Дейност,SMALL(IF(Цел=$H$2,ROW(Дейност)-MIN(ROW(Дейност))+1),ROWS($B$3:B69)))&CHAR(10),\"\")","v":""}]
[null,{"$f":"IFERROR(INDEX(Дейност,SMALL(IF(Цел=$B$2,ROW(Дейност)-MIN(ROW(Дейност))+1),ROWS($B$3:B70)))&\" \"&CHAR(10)&(INDEX(Резултат,SMALL(IF(Цел=$B$2,ROW(Резултат)-MIN(ROW(Резултат))+1),ROWS($B$3:B70))))&CHAR(10),\"\")","v":""},null,{"$f":"IFERROR(INDEX(Дейност,SMALL(IF(Цел=$D$2,ROW(Дейност)-MIN(ROW(Дейност))+1),ROWS($B$3:B70)))&CHAR(10),\"\")","v":""},null,{"$f":"IFERROR(INDEX(Дейност,SMALL(IF(Цел=$F$2,ROW(Дейност)-MIN(ROW(Дейност))+1),ROWS($B$3:B70)))&CHAR(10),\"\")","v":""},null,{"$f":"IFERROR(INDEX(Дейност,SMALL(IF(Цел=$H$2,ROW(Дейност)-MIN(ROW(Дейност))+1),ROWS($B$3:B70)))&CHAR(10),\"\")","v":""}]
[null,{"$f":"IFERROR(INDEX(Дейност,SMALL(IF(Цел=$B$2,ROW(Дейност)-MIN(ROW(Дейност))+1),ROWS($B$3:B71)))&\" \"&CHAR(10)&(INDEX(Резултат,SMALL(IF(Цел=$B$2,ROW(Резултат)-MIN(ROW(Резултат))+1),ROWS($B$3:B71))))&CHAR(10),\"\")","v":""},null,{"$f":"IFERROR(INDEX(Дейност,SMALL(IF(Цел=$D$2,ROW(Дейност)-MIN(ROW(Дейност))+1),ROWS($B$3:B71)))&CHAR(10),\"\")","v":""},null,{"$f":"IFERROR(INDEX(Дейност,SMALL(IF(Цел=$F$2,ROW(Дейност)-MIN(ROW(Дейност))+1),ROWS($B$3:B71)))&CHAR(10),\"\")","v":""},null,{"$f":"IFERROR(INDEX(Дейност,SMALL(IF(Цел=$H$2,ROW(Дейност)-MIN(ROW(Дейност))+1),ROWS($B$3:B71)))&CHAR(10),\"\")","v":""}]
[null,{"$f":"IFERROR(INDEX(Дейност,SMALL(IF(Цел=$B$2,ROW(Дейност)-MIN(ROW(Дейност))+1),ROWS($B$3:B72)))&\" \"&CHAR(10)&(INDEX(Резултат,SMALL(IF(Цел=$B$2,ROW(Резултат)-MIN(ROW(Резултат))+1),ROWS($B$3:B72))))&CHAR(10),\"\")","v":""},null,{"$f":"IFERROR(INDEX(Дейност,SMALL(IF(Цел=$D$2,ROW(Дейност)-MIN(ROW(Дейност))+1),ROWS($B$3:B72)))&CHAR(10),\"\")","v":""},null,{"$f":"IFERROR(INDEX(Дейност,SMALL(IF(Цел=$F$2,ROW(Дейност)-MIN(ROW(Дейност))+1),ROWS($B$3:B72)))&CHAR(10),\"\")","v":""},null,{"$f":"IFERROR(INDEX(Дейност,SMALL(IF(Цел=$H$2,ROW(Дейност)-MIN(ROW(Дейност))+1),ROWS($B$3:B72)))&CHAR(10),\"\")","v":""}]
[null,{"$f":"IFERROR(INDEX(Дейност,SMALL(IF(Цел=$B$2,ROW(Дейност)-MIN(ROW(Дейност))+1),ROWS($B$3:B73)))&\" \"&CHAR(10)&(INDEX(Резултат,SMALL(IF(Цел=$B$2,ROW(Резултат)-MIN(ROW(Резултат))+1),ROWS($B$3:B73))))&CHAR(10),\"\")","v":""},null,{"$f":"IFERROR(INDEX(Дейност,SMALL(IF(Цел=$D$2,ROW(Дейност)-MIN(ROW(Дейност))+1),ROWS($B$3:B73)))&CHAR(10),\"\")","v":""},null,{"$f":"IFERROR(INDEX(Дейност,SMALL(IF(Цел=$F$2,ROW(Дейност)-MIN(ROW(Дейност))+1),ROWS($B$3:B73)))&CHAR(10),\"\")","v":""},null,{"$f":"IFERROR(INDEX(Дейност,SMALL(IF(Цел=$H$2,ROW(Дейност)-MIN(ROW(Дейност))+1),ROWS($B$3:B73)))&CHAR(10),\"\")","v":""}]
[null,{"$f":"IFERROR(INDEX(Дейност,SMALL(IF(Цел=$B$2,ROW(Дейност)-MIN(ROW(Дейност))+1),ROWS($B$3:B74)))&\" \"&CHAR(10)&(INDEX(Резултат,SMALL(IF(Цел=$B$2,ROW(Резултат)-MIN(ROW(Резултат))+1),ROWS($B$3:B74))))&CHAR(10),\"\")","v":""},null,{"$f":"IFERROR(INDEX(Дейност,SMALL(IF(Цел=$D$2,ROW(Дейност)-MIN(ROW(Дейност))+1),ROWS($B$3:B74)))&CHAR(10),\"\")","v":""},null,{"$f":"IFERROR(INDEX(Дейност,SMALL(IF(Цел=$F$2,ROW(Дейност)-MIN(ROW(Дейност))+1),ROWS($B$3:B74)))&CHAR(10),\"\")","v":""},null,{"$f":"IFERROR(INDEX(Дейност,SMALL(IF(Цел=$H$2,ROW(Дейност)-MIN(ROW(Дейност))+1),ROWS($B$3:B74)))&CHAR(10),\"\")","v":""}]
[null,{"$f":"IFERROR(INDEX(Дейност,SMALL(IF(Цел=$B$2,ROW(Дейност)-MIN(ROW(Дейност))+1),ROWS($B$3:B75)))&\" \"&CHAR(10)&(INDEX(Резултат,SMALL(IF(Цел=$B$2,ROW(Резултат)-MIN(ROW(Резултат))+1),ROWS($B$3:B75))))&CHAR(10),\"\")","v":""},null,{"$f":"IFERROR(INDEX(Дейност,SMALL(IF(Цел=$D$2,ROW(Дейност)-MIN(ROW(Дейност))+1),ROWS($B$3:B75)))&CHAR(10),\"\")","v":""},null,{"$f":"IFERROR(INDEX(Дейност,SMALL(IF(Цел=$F$2,ROW(Дейност)-MIN(ROW(Дейност))+1),ROWS($B$3:B75)))&CHAR(10),\"\")","v":""},null,{"$f":"IFERROR(INDEX(Дейност,SMALL(IF(Цел=$H$2,ROW(Дейност)-MIN(ROW(Дейност))+1),ROWS($B$3:B75)))&CHAR(10),\"\")","v":""}]
[null,{"$f":"IFERROR(INDEX(Дейност,SMALL(IF(Цел=$B$2,ROW(Дейност)-MIN(ROW(Дейност))+1),ROWS($B$3:B76)))&\" \"&CHAR(10)&(INDEX(Резултат,SMALL(IF(Цел=$B$2,ROW(Резултат)-MIN(ROW(Резултат))+1),ROWS($B$3:B76))))&CHAR(10),\"\")","v":""},null,{"$f":"IFERROR(INDEX(Дейност,SMALL(IF(Цел=$D$2,ROW(Дейност)-MIN(ROW(Дейност))+1),ROWS($B$3:B76)))&CHAR(10),\"\")","v":""},null,{"$f":"IFERROR(INDEX(Дейност,SMALL(IF(Цел=$F$2,ROW(Дейност)-MIN(ROW(Дейност))+1),ROWS($B$3:B76)))&CHAR(10),\"\")","v":""},null,{"$f":"IFERROR(INDEX(Дейност,SMALL(IF(Цел=$H$2,ROW(Дейност)-MIN(ROW(Дейност))+1),ROWS($B$3:B76)))&CHAR(10),\"\")","v":""}]
[null,{"$f":"IFERROR(INDEX(Дейност,SMALL(IF(Цел=$B$2,ROW(Дейност)-MIN(ROW(Дейност))+1),ROWS($B$3:B77)))&\" \"&CHAR(10)&(INDEX(Резултат,SMALL(IF(Цел=$B$2,ROW(Резултат)-MIN(ROW(Резултат))+1),ROWS($B$3:B77))))&CHAR(10),\"\")","v":""},null,{"$f":"IFERROR(INDEX(Дейност,SMALL(IF(Цел=$D$2,ROW(Дейност)-MIN(ROW(Дейност))+1),ROWS($B$3:B77)))&CHAR(10),\"\")","v":""},null,{"$f":"IFERROR(INDEX(Дейност,SMALL(IF(Цел=$F$2,ROW(Дейност)-MIN(ROW(Дейност))+1),ROWS($B$3:B77)))&CHAR(10),\"\")","v":""},null,{"$f":"IFERROR(INDEX(Дейност,SMALL(IF(Цел=$H$2,ROW(Дейност)-MIN(ROW(Дейност))+1),ROWS($B$3:B77)))&CHAR(10),\"\")","v":""}]
[null,{"$f":"IFERROR(INDEX(Дейност,SMALL(IF(Цел=$B$2,ROW(Дейност)-MIN(ROW(Дейност))+1),ROWS($B$3:B78)))&\" \"&CHAR(10)&(INDEX(Резултат,SMALL(IF(Цел=$B$2,ROW(Резултат)-MIN(ROW(Резултат))+1),ROWS($B$3:B78))))&CHAR(10),\"\")","v":""},null,{"$f":"IFERROR(INDEX(Дейност,SMALL(IF(Цел=$D$2,ROW(Дейност)-MIN(ROW(Дейност))+1),ROWS($B$3:B78)))&CHAR(10),\"\")","v":""},null,{"$f":"IFERROR(INDEX(Дейност,SMALL(IF(Цел=$F$2,ROW(Дейност)-MIN(ROW(Дейност))+1),ROWS($B$3:B78)))&CHAR(10),\"\")","v":""},null,{"$f":"IFERROR(INDEX(Дейност,SMALL(IF(Цел=$H$2,ROW(Дейност)-MIN(ROW(Дейност))+1),ROWS($B$3:B78)))&CHAR(10),\"\")","v":""}]
[null,{"$f":"IFERROR(INDEX(Дейност,SMALL(IF(Цел=$B$2,ROW(Дейност)-MIN(ROW(Дейност))+1),ROWS($B$3:B79)))&\" \"&CHAR(10)&(INDEX(Резултат,SMALL(IF(Цел=$B$2,ROW(Резултат)-MIN(ROW(Резултат))+1),ROWS($B$3:B79))))&CHAR(10),\"\")","v":""},null,{"$f":"IFERROR(INDEX(Дейност,SMALL(IF(Цел=$D$2,ROW(Дейност)-MIN(ROW(Дейност))+1),ROWS($B$3:B79)))&CHAR(10),\"\")","v":""},null,{"$f":"IFERROR(INDEX(Дейност,SMALL(IF(Цел=$F$2,ROW(Дейност)-MIN(ROW(Дейност))+1),ROWS($B$3:B79)))&CHAR(10),\"\")","v":""},null,{"$f":"IFERROR(INDEX(Дейност,SMALL(IF(Цел=$H$2,ROW(Дейност)-MIN(ROW(Дейност))+1),ROWS($B$3:B79)))&CHAR(10),\"\")","v":""}]
[null,{"$f":"IFERROR(INDEX(Дейност,SMALL(IF(Цел=$B$2,ROW(Дейност)-MIN(ROW(Дейност))+1),ROWS($B$3:B80)))&\" \"&CHAR(10)&(INDEX(Резултат,SMALL(IF(Цел=$B$2,ROW(Резултат)-MIN(ROW(Резултат))+1),ROWS($B$3:B80))))&CHAR(10),\"\")","v":""},null,{"$f":"IFERROR(INDEX(Дейност,SMALL(IF(Цел=$D$2,ROW(Дейност)-MIN(ROW(Дейност))+1),ROWS($B$3:B80)))&CHAR(10),\"\")","v":""},null,{"$f":"IFERROR(INDEX(Дейност,SMALL(IF(Цел=$F$2,ROW(Дейност)-MIN(ROW(Дейност))+1),ROWS($B$3:B80)))&CHAR(10),\"\")","v":""},null,{"$f":"IFERROR(INDEX(Дейност,SMALL(IF(Цел=$H$2,ROW(Дейност)-MIN(ROW(Дейност))+1),ROWS($B$3:B80)))&CHAR(10),\"\")","v":""}]
[null,{"$f":"IFERROR(INDEX(Дейност,SMALL(IF(Цел=$B$2,ROW(Дейност)-MIN(ROW(Дейност))+1),ROWS($B$3:B81)))&\" \"&CHAR(10)&(INDEX(Резултат,SMALL(IF(Цел=$B$2,ROW(Резултат)-MIN(ROW(Резултат))+1),ROWS($B$3:B81))))&CHAR(10),\"\")","v":""},null,{"$f":"IFERROR(INDEX(Дейност,SMALL(IF(Цел=$D$2,ROW(Дейност)-MIN(ROW(Дейност))+1),ROWS($B$3:B81)))&CHAR(10),\"\")","v":""},null,{"$f":"IFERROR(INDEX(Дейност,SMALL(IF(Цел=$F$2,ROW(Дейност)-MIN(ROW(Дейност))+1),ROWS($B$3:B81)))&CHAR(10),\"\")","v":""},null,{"$f":"IFERROR(INDEX(Дейност,SMALL(IF(Цел=$H$2,ROW(Дейност)-MIN(ROW(Дейност))+1),ROWS($B$3:B81)))&CHAR(10),\"\")","v":""}]
[null,{"$f":"IFERROR(INDEX(Дейност,SMALL(IF(Цел=$B$2,ROW(Дейност)-MIN(ROW(Дейност))+1),ROWS($B$3:B82)))&\" \"&CHAR(10)&(INDEX(Резултат,SMALL(IF(Цел=$B$2,ROW(Резултат)-MIN(ROW(Резултат))+1),ROWS($B$3:B82))))&CHAR(10),\"\")","v":""},null,{"$f":"IFERROR(INDEX(Дейност,SMALL(IF(Цел=$D$2,ROW(Дейност)-MIN(ROW(Дейност))+1),ROWS($B$3:B82)))&CHAR(10),\"\")","v":""},null,{"$f":"IFERROR(INDEX(Дейност,SMALL(IF(Цел=$F$2,ROW(Дейност)-MIN(ROW(Дейност))+1),ROWS($B$3:B82)))&CHAR(10),\"\")","v":""},null,{"$f":"IFERROR(INDEX(Дейност,SMALL(IF(Цел=$H$2,ROW(Дейност)-MIN(ROW(Дейност))+1),ROWS($B$3:B82)))&CHAR(10),\"\")","v":""}]
[null,{"$f":"IFERROR(INDEX(Дейност,SMALL(IF(Цел=$B$2,ROW(Дейност)-MIN(ROW(Дейност))+1),ROWS($B$3:B83)))&\" \"&CHAR(10)&(INDEX(Резултат,SMALL(IF(Цел=$B$2,ROW(Резултат)-MIN(ROW(Резултат))+1),ROWS($B$3:B83))))&CHAR(10),\"\")","v":""},null,{"$f":"IFERROR(INDEX(Дейност,SMALL(IF(Цел=$D$2,ROW(Дейност)-MIN(ROW(Дейност))+1),ROWS($B$3:B83)))&CHAR(10),\"\")","v":""},null,{"$f":"IFERROR(INDEX(Дейност,SMALL(IF(Цел=$F$2,ROW(Дейност)-MIN(ROW(Дейност))+1),ROWS($B$3:B83)))&CHAR(10),\"\")","v":""},null,{"$f":"IFERROR(INDEX(Дейност,SMALL(IF(Цел=$H$2,ROW(Дейност)-MIN(ROW(Дейност))+1),ROWS($B$3:B83)))&CHAR(10),\"\")","v":""}]
[null,{"$f":"IFERROR(INDEX(Дейност,SMALL(IF(Цел=$B$2,ROW(Дейност)-MIN(ROW(Дейност))+1),ROWS($B$3:B84)))&\" \"&CHAR(10)&(INDEX(Резултат,SMALL(IF(Цел=$B$2,ROW(Резултат)-MIN(ROW(Резултат))+1),ROWS($B$3:B84))))&CHAR(10),\"\")","v":""},null,{"$f":"IFERROR(INDEX(Дейност,SMALL(IF(Цел=$D$2,ROW(Дейност)-MIN(ROW(Дейност))+1),ROWS($B$3:B84)))&CHAR(10),\"\")","v":""},null,{"$f":"IFERROR(INDEX(Дейност,SMALL(IF(Цел=$F$2,ROW(Дейност)-MIN(ROW(Дейност))+1),ROWS($B$3:B84)))&CHAR(10),\"\")","v":""},null,{"$f":"IFERROR(INDEX(Дейност,SMALL(IF(Цел=$H$2,ROW(Дейност)-MIN(ROW(Дейност))+1),ROWS($B$3:B84)))&CHAR(10),\"\")","v":""}]
[null,{"$f":"IFERROR(INDEX(Дейност,SMALL(IF(Цел=$B$2,ROW(Дейност)-MIN(ROW(Дейност))+1),ROWS($B$3:B85)))&\" \"&CHAR(10)&(INDEX(Резултат,SMALL(IF(Цел=$B$2,ROW(Резултат)-MIN(ROW(Резултат))+1),ROWS($B$3:B85))))&CHAR(10),\"\")","v":""},null,{"$f":"IFERROR(INDEX(Дейност,SMALL(IF(Цел=$D$2,ROW(Дейност)-MIN(ROW(Дейност))+1),ROWS($B$3:B85)))&CHAR(10),\"\")","v":""},null,{"$f":"IFERROR(INDEX(Дейност,SMALL(IF(Цел=$F$2,ROW(Дейност)-MIN(ROW(Дейност))+1),ROWS($B$3:B85)))&CHAR(10),\"\")","v":""},null,{"$f":"IFERROR(INDEX(Дейност,SMALL(IF(Цел=$H$2,ROW(Дейност)-MIN(ROW(Дейност))+1),ROWS($B$3:B85)))&CHAR(10),\"\")","v":""}]
[null,{"$f":"IFERROR(INDEX(Дейност,SMALL(IF(Цел=$B$2,ROW(Дейност)-MIN(ROW(Дейност))+1),ROWS($B$3:B86)))&\" \"&CHAR(10)&(INDEX(Резултат,SMALL(IF(Цел=$B$2,ROW(Резултат)-MIN(ROW(Резултат))+1),ROWS($B$3:B86))))&CHAR(10),\"\")","v":""},null,{"$f":"IFERROR(INDEX(Дейност,SMALL(IF(Цел=$D$2,ROW(Дейност)-MIN(ROW(Дейност))+1),ROWS($B$3:B86)))&CHAR(10),\"\")","v":""},null,{"$f":"IFERROR(INDEX(Дейност,SMALL(IF(Цел=$F$2,ROW(Дейност)-MIN(ROW(Дейност))+1),ROWS($B$3:B86)))&CHAR(10),\"\")","v":""},null,{"$f":"IFERROR(INDEX(Дейност,SMALL(IF(Цел=$H$2,ROW(Дейност)-MIN(ROW(Дейност))+1),ROWS($B$3:B86)))&CHAR(10),\"\")","v":""}]
[null,{"$f":"IFERROR(INDEX(Дейност,SMALL(IF(Цел=$B$2,ROW(Дейност)-MIN(ROW(Дейност))+1),ROWS($B$3:B87)))&\" \"&CHAR(10)&(INDEX(Резултат,SMALL(IF(Цел=$B$2,ROW(Резултат)-MIN(ROW(Резултат))+1),ROWS($B$3:B87))))&CHAR(10),\"\")","v":""},null,{"$f":"IFERROR(INDEX(Дейност,SMALL(IF(Цел=$D$2,ROW(Дейност)-MIN(ROW(Дейност))+1),ROWS($B$3:B87)))&CHAR(10),\"\")","v":""},null,{"$f":"IFERROR(INDEX(Дейност,SMALL(IF(Цел=$F$2,ROW(Дейност)-MIN(ROW(Дейност))+1),ROWS($B$3:B87)))&CHAR(10),\"\")","v":""},null,{"$f":"IFERROR(INDEX(Дейност,SMALL(IF(Цел=$H$2,ROW(Дейност)-MIN(ROW(Дейност))+1),ROWS($B$3:B87)))&CHAR(10),\"\")","v":""}]
[null,{"$f":"IFERROR(INDEX(Дейност,SMALL(IF(Цел=$B$2,ROW(Дейност)-MIN(ROW(Дейност))+1),ROWS($B$3:B88)))&\" \"&CHAR(10)&(INDEX(Резултат,SMALL(IF(Цел=$B$2,ROW(Резултат)-MIN(ROW(Резултат))+1),ROWS($B$3:B88))))&CHAR(10),\"\")","v":""},null,{"$f":"IFERROR(INDEX(Дейност,SMALL(IF(Цел=$D$2,ROW(Дейност)-MIN(ROW(Дейност))+1),ROWS($B$3:B88)))&CHAR(10),\"\")","v":""},null,{"$f":"IFERROR(INDEX(Дейност,SMALL(IF(Цел=$F$2,ROW(Дейност)-MIN(ROW(Дейност))+1),ROWS($B$3:B88)))&CHAR(10),\"\")","v":""},null,{"$f":"IFERROR(INDEX(Дейност,SMALL(IF(Цел=$H$2,ROW(Дейност)-MIN(ROW(Дейност))+1),ROWS($B$3:B88)))&CHAR(10),\"\")","v":""}]
[null,{"$f":"IFERROR(INDEX(Дейност,SMALL(IF(Цел=$B$2,ROW(Дейност)-MIN(ROW(Дейност))+1),ROWS($B$3:B89)))&\" \"&CHAR(10)&(INDEX(Резултат,SMALL(IF(Цел=$B$2,ROW(Резултат)-MIN(ROW(Резултат))+1),ROWS($B$3:B89))))&CHAR(10),\"\")","v":""},null,{"$f":"IFERROR(INDEX(Дейност,SMALL(IF(Цел=$D$2,ROW(Дейност)-MIN(ROW(Дейност))+1),ROWS($B$3:B89)))&CHAR(10),\"\")","v":""},null,{"$f":"IFERROR(INDEX(Дейност,SMALL(IF(Цел=$F$2,ROW(Дейност)-MIN(ROW(Дейност))+1),ROWS($B$3:B89)))&CHAR(10),\"\")","v":""},null,{"$f":"IFERROR(INDEX(Дейност,SMALL(IF(Цел=$H$2,ROW(Дейност)-MIN(ROW(Дейност))+1),ROWS($B$3:B89)))&CHAR(10),\"\")","v":""}]
[null,{"$f":"IFERROR(INDEX(Дейност,SMALL(IF(Цел=$B$2,ROW(Дейност)-MIN(ROW(Дейност))+1),ROWS($B$3:B90)))&\" \"&CHAR(10)&(INDEX(Резултат,SMALL(IF(Цел=$B$2,ROW(Резултат)-MIN(ROW(Резултат))+1),ROWS($B$3:B90))))&CHAR(10),\"\")","v":""},null,{"$f":"IFERROR(INDEX(Дейност,SMALL(IF(Цел=$D$2,ROW(Дейност)-MIN(ROW(Дейност))+1),ROWS($B$3:B90)))&CHAR(10),\"\")","v":""},null,{"$f":"IFERROR(INDEX(Дейност,SMALL(IF(Цел=$F$2,ROW(Дейност)-MIN(ROW(Дейност))+1),ROWS($B$3:B90)))&CHAR(10),\"\")","v":""},null,{"$f":"IFERROR(INDEX(Дейност,SMALL(IF(Цел=$H$2,ROW(Дейност)-MIN(ROW(Дейност))+1),ROWS($B$3:B90)))&CHAR(10),\"\")","v":""}]
[null,{"$f":"IFERROR(INDEX(Дейност,SMALL(IF(Цел=$B$2,ROW(Дейност)-MIN(ROW(Дейност))+1),ROWS($B$3:B91)))&\" \"&CHAR(10)&(INDEX(Резултат,SMALL(IF(Цел=$B$2,ROW(Резултат)-MIN(ROW(Резултат))+1),ROWS($B$3:B91))))&CHAR(10),\"\")","v":""},null,{"$f":"IFERROR(INDEX(Дейност,SMALL(IF(Цел=$D$2,ROW(Дейност)-MIN(ROW(Дейност))+1),ROWS($B$3:B91)))&CHAR(10),\"\")","v":""},null,{"$f":"IFERROR(INDEX(Дейност,SMALL(IF(Цел=$F$2,ROW(Дейност)-MIN(ROW(Дейност))+1),ROWS($B$3:B91)))&CHAR(10),\"\")","v":""},null,{"$f":"IFERROR(INDEX(Дейност,SMALL(IF(Цел=$H$2,ROW(Дейност)-MIN(ROW(Дейност))+1),ROWS($B$3:B91)))&CHAR(10),\"\")","v":""}]
[null,{"$f":"IFERROR(INDEX(Дейност,SMALL(IF(Цел=$B$2,ROW(Дейност)-MIN(ROW(Дейност))+1),ROWS($B$3:B92)))&\" \"&CHAR(10)&(INDEX(Резултат,SMALL(IF(Цел=$B$2,ROW(Резултат)-MIN(ROW(Резултат))+1),ROWS($B$3:B92))))&CHAR(10),\"\")","v":""},null,{"$f":"IFERROR(INDEX(Дейност,SMALL(IF(Цел=$D$2,ROW(Дейност)-MIN(ROW(Дейност))+1),ROWS($B$3:B92)))&CHAR(10),\"\")","v":""},null,{"$f":"IFERROR(INDEX(Дейност,SMALL(IF(Цел=$F$2,ROW(Дейност)-MIN(ROW(Дейност))+1),ROWS($B$3:B92)))&CHAR(10),\"\")","v":""},null,{"$f":"IFERROR(INDEX(Дейност,SMALL(IF(Цел=$H$2,ROW(Дейност)-MIN(ROW(Дейност))+1),ROWS($B$3:B92)))&CHAR(10),\"\")","v":""}]
[null,{"$f":"IFERROR(INDEX(Дейност,SMALL(IF(Цел=$B$2,ROW(Дейност)-MIN(ROW(Дейност))+1),ROWS($B$3:B93)))&\" \"&CHAR(10)&(INDEX(Резултат,SMALL(IF(Цел=$B$2,ROW(Резултат)-MIN(ROW(Резултат))+1),ROWS($B$3:B93))))&CHAR(10),\"\")","v":""},null,{"$f":"IFERROR(INDEX(Дейност,SMALL(IF(Цел=$D$2,ROW(Дейност)-MIN(ROW(Дейност))+1),ROWS($B$3:B93)))&CHAR(10),\"\")","v":""},null,{"$f":"IFERROR(INDEX(Дейност,SMALL(IF(Цел=$F$2,ROW(Дейност)-MIN(ROW(Дейност))+1),ROWS($B$3:B93)))&CHAR(10),\"\")","v":""},null,{"$f":"IFERROR(INDEX(Дейност,SMALL(IF(Цел=$H$2,ROW(Дейност)-MIN(ROW(Дейност))+1),ROWS($B$3:B93)))&CHAR(10),\"\")","v":""}]
[null,{"$f":"IFERROR(INDEX(Дейност,SMALL(IF(Цел=$B$2,ROW(Дейност)-MIN(ROW(Дейност))+1),ROWS($B$3:B94)))&\" \"&CHAR(10)&(INDEX(Резултат,SMALL(IF(Цел=$B$2,ROW(Резултат)-MIN(ROW(Резултат))+1),ROWS($B$3:B94))))&CHAR(10),\"\")","v":""},null,{"$f":"IFERROR(INDEX(Дейност,SMALL(IF(Цел=$D$2,ROW(Дейност)-MIN(ROW(Дейност))+1),ROWS($B$3:B94)))&CHAR(10),\"\")","v":""},null,{"$f":"IFERROR(INDEX(Дейност,SMALL(IF(Цел=$F$2,ROW(Дейност)-MIN(ROW(Дейност))+1),ROWS($B$3:B94)))&CHAR(10),\"\")","v":""},null,{"$f":"IFERROR(INDEX(Дейност,SMALL(IF(Цел=$H$2,ROW(Дейност)-MIN(ROW(Дейност))+1),ROWS($B$3:B94)))&CHAR(10),\"\")","v":""}]
[null,{"$f":"IFERROR(INDEX(Дейност,SMALL(IF(Цел=$B$2,ROW(Дейност)-MIN(ROW(Дейност))+1),ROWS($B$3:B95)))&\" \"&CHAR(10)&(INDEX(Резултат,SMALL(IF(Цел=$B$2,ROW(Резултат)-MIN(ROW(Резултат))+1),ROWS($B$3:B95))))&CHAR(10),\"\")","v":""},null,{"$f":"IFERROR(INDEX(Дейност,SMALL(IF(Цел=$D$2,ROW(Дейност)-MIN(ROW(Дейност))+1),ROWS($B$3:B95)))&CHAR(10),\"\")","v":""},null,{"$f":"IFERROR(INDEX(Дейност,SMALL(IF(Цел=$F$2,ROW(Дейност)-MIN(ROW(Дейност))+1),ROWS($B$3:B95)))&CHAR(10),\"\")","v":""},null,{"$f":"IFERROR(INDEX(Дейност,SMALL(IF(Цел=$H$2,ROW(Дейност)-MIN(ROW(Дейност))+1),ROWS($B$3:B95)))&CHAR(10),\"\")","v":""}]
[null,{"$f":"IFERROR(INDEX(Дейност,SMALL(IF(Цел=$B$2,ROW(Дейност)-MIN(ROW(Дейност))+1),ROWS($B$3:B96)))&\" \"&CHAR(10)&(INDEX(Резултат,SMALL(IF(Цел=$B$2,ROW(Резултат)-MIN(ROW(Резултат))+1),ROWS($B$3:B96))))&CHAR(10),\"\")","v":""},null,{"$f":"IFERROR(INDEX(Дейност,SMALL(IF(Цел=$D$2,ROW(Дейност)-MIN(ROW(Дейност))+1),ROWS($B$3:B96)))&CHAR(10),\"\")","v":""},null,{"$f":"IFERROR(INDEX(Дейност,SMALL(IF(Цел=$F$2,ROW(Дейност)-MIN(ROW(Дейност))+1),ROWS($B$3:B96)))&CHAR(10),\"\")","v":""},null,{"$f":"IFERROR(INDEX(Дейност,SMALL(IF(Цел=$H$2,ROW(Дейност)-MIN(ROW(Дейност))+1),ROWS($B$3:B96)))&CHAR(10),\"\")","v":""}]
[null,{"$f":"IFERROR(INDEX(Дейност,SMALL(IF(Цел=$B$2,ROW(Дейност)-MIN(ROW(Дейност))+1),ROWS($B$3:B97)))&\" \"&CHAR(10)&(INDEX(Резултат,SMALL(IF(Цел=$B$2,ROW(Резултат)-MIN(ROW(Резултат))+1),ROWS($B$3:B97))))&CHAR(10),\"\")","v":""},null,{"$f":"IFERROR(INDEX(Дейност,SMALL(IF(Цел=$D$2,ROW(Дейност)-MIN(ROW(Дейност))+1),ROWS($B$3:B97)))&CHAR(10),\"\")","v":""},null,{"$f":"IFERROR(INDEX(Дейност,SMALL(IF(Цел=$F$2,ROW(Дейност)-MIN(ROW(Дейност))+1),ROWS($B$3:B97)))&CHAR(10),\"\")","v":""},null,{"$f":"IFERROR(INDEX(Дейност,SMALL(IF(Цел=$H$2,ROW(Дейност)-MIN(ROW(Дейност))+1),ROWS($B$3:B97)))&CHAR(10),\"\")","v":""}]
[null,{"$f":"IFERROR(INDEX(Дейност,SMALL(IF(Цел=$B$2,ROW(Дейност)-MIN(ROW(Дейност))+1),ROWS($B$3:B98)))&\" \"&CHAR(10)&(INDEX(Резултат,SMALL(IF(Цел=$B$2,ROW(Резултат)-MIN(ROW(Резултат))+1),ROWS($B$3:B98))))&CHAR(10),\"\")","v":""},null,{"$f":"IFERROR(INDEX(Дейност,SMALL(IF(Цел=$D$2,ROW(Дейност)-MIN(ROW(Дейност))+1),ROWS($B$3:B98)))&CHAR(10),\"\")","v":""},null,{"$f":"IFERROR(INDEX(Дейност,SMALL(IF(Цел=$F$2,ROW(Дейност)-MIN(ROW(Дейност))+1),ROWS($B$3:B98)))&CHAR(10),\"\")","v":""},null,{"$f":"IFERROR(INDEX(Дейност,SMALL(IF(Цел=$H$2,ROW(Дейност)-MIN(ROW(Дейност))+1),ROWS($B$3:B98)))&CHAR(10),\"\")","v":""}]
[null,{"$f":"IFERROR(INDEX(Дейност,SMALL(IF(Цел=$B$2,ROW(Дейност)-MIN(ROW(Дейност))+1),ROWS($B$3:B99)))&\" \"&CHAR(10)&(INDEX(Резултат,SMALL(IF(Цел=$B$2,ROW(Резултат)-MIN(ROW(Резултат))+1),ROWS($B$3:B99))))&CHAR(10),\"\")","v":""},null,{"$f":"IFERROR(INDEX(Дейност,SMALL(IF(Цел=$D$2,ROW(Дейност)-MIN(ROW(Дейност))+1),ROWS($B$3:B99)))&CHAR(10),\"\")","v":""},null,{"$f":"IFERROR(INDEX(Дейност,SMALL(IF(Цел=$F$2,ROW(Дейност)-MIN(ROW(Дейност))+1),ROWS($B$3:B99)))&CHAR(10),\"\")","v":""},null,{"$f":"IFERROR(INDEX(Дейност,SMALL(IF(Цел=$H$2,ROW(Дейност)-MIN(ROW(Дейност))+1),ROWS($B$3:B99)))&CHAR(10),\"\")","v":""}]
[null,{"$f":"IFERROR(INDEX(Дейност,SMALL(IF(Цел=$B$2,ROW(Дейност)-MIN(ROW(Дейност))+1),ROWS($B$3:B100)))&\" \"&CHAR(10)&(INDEX(Резултат,SMALL(IF(Цел=$B$2,ROW(Резултат)-MIN(ROW(Резултат))+1),ROWS($B$3:B100))))&CHAR(10),\"\")","v":""},null,{"$f":"IFERROR(INDEX(Дейност,SMALL(IF(Цел=$D$2,ROW(Дейност)-MIN(ROW(Дейност))+1),ROWS($B$3:B100)))&CHAR(10),\"\")","v":""},null,{"$f":"IFERROR(INDEX(Дейност,SMALL(IF(Цел=$F$2,ROW(Дейност)-MIN(ROW(Дейност))+1),ROWS($B$3:B100)))&CHAR(10),\"\")","v":""},null,{"$f":"IFERROR(INDEX(Дейност,SMALL(IF(Цел=$H$2,ROW(Дейност)-MIN(ROW(Дейност))+1),ROWS($B$3:B100)))&CHAR(10),\"\")","v":""}]

{"sheet":"Относно","index":2,"n_rows":6,"n_cols":1,"rows_kept":6}
["За тази работна книга"]
["Ръководство за екранни четци"]
["В тази работна книга има 3 работни листа. \n\nДанни за пътната карта\nГъвкава пътна карта\nОтносно\n\nУказанията за всеки работен лист са дадени в колона A, като се започне от клетка A1 на всеки работен лист. Те са написани със скрит текст. Всяка стъпка ви води през информацията в този ред. Всяка следваща стъпка продължава в клетка A2, A3 и т.н., освен ако изрично не е указано друго. Например текстът с указания може да гласи \"продължете към клетка A6\" за следващата стъпка. \n\nСкритият текст няма да се отпечата.\n\nЗа да премахнете тези инструкции от всеки работен лист, просто изтрийте колона A.\n"]
["Относно тази работна книга"]
["Въведете информацията за контролна точка в работния лист \"Данни за пътната карта\".  Не забравяйте да сортирате по приоритет, последвано от контролна точка, за да подредите изглед \"Завършена\", \"Текуща\", \"Предстои скоро\" и \"Бъдеща\" в низходящ ред – като елементите с най-висок приоритет са най-отгоре. Пътната карта в работния лист \"Гъвкава пътна карта\" се актуализира автоматично.\n"]
["Това е последното указание в този работен лист."]